Cogmind - Beta 9.6 @@@ ROGUE MODE // 2020.07.27 @ 15:19:46 // Winter2019/RPGLIKE Player: Hermelin Result: Destroyed by H-88 Terminator with KE Penetrator Performance ------------- Evolutions (9) 4500 Regions Visited (36) 7200 Robots Destroyed (869) 4345 Value Destroyed (40540) 40540 Prototype IDs (143) 2860 Alien Tech Used (10) 2000 Bonus (56555) 56555 TOTAL SCORE: 118000 Bonus ------- Triggered High Security 1500 High Alert Combat Kills 19445 Follower Combat Kills 1304 Network Hubs Disabled 400 Aligned with FarCom 300 Met Data Miner 300 Met Imprinter 300 Destroyed Z-Imprinter 1000 Triggered Deep Caves Wall 1000 Exposed GOLEM Chamber 15000 Met Zhirov 300 Built Enhanced Grunts 300 A7 Reached Mainframe 300 Met R17 at Cetus 500 Read Decrypted Archives 300 Scanned by Researcher 1000 Pursued by Intercept 1000 Acquired SGEMP 2000 Met Sigix 2000 Destroyed MAIN.C Guards 500 Met MAIN.C 5000 Destroyed MAIN.C Shell 5000 Friendly Fire -2194 Cogmind --------- Core Integrity 0/1400 Matter 26/850 Energy 6/1350 System Corruption 11% Temperature Cool (0) Movement Flying (50) Location -1/Command Parts ------- > --- POWER (2) -------- Zionite Light DM Reactor Zionite Light DM Reactor > --- PROPULSION (4) --- Flying Fortress v7 > --- UTILITY (14) ----- Experimental Coolant Injector Assembled Biocell Array Experimental Matter Compressor Zionite Metafield Generator Experimental Signal Interpreter Assembled Combat Suite Experimental Core Analyzer Experimental Weapon Cycler Advanced Reaction Control System Assembled Alloy Armor Heavy Regenerative Plating Advanced Shield Generator System Purifier > --- WEAPON (5) ------- Advanced Variable Charge Gun XL Autogun Array > --- INVENTORY (8) ---- Long-range Terrain Scanner GOLEM Unit Enhanced Force Lance Sigix Containment Pod Peak State ------------ > --- POWER ------------ Zionite Light DM Reactor Zionite Light DM Reactor > --- PROPULSION ------- Flying Fortress v7 > --- UTILITY ---------- Experimental Coolant Injector Assembled Biocell Array Experimental Matter Compressor Zionite Metafield Generator Experimental Signal Interpreter Long-range Terrain Scanner Assembled Combat Suite Experimental Core Analyzer Experimental Weapon Cycler Advanced Reaction Control System 8R-AWN's Armor/EX Assembled Alloy Armor Advanced Shield Generator > --- WEAPON ----------- Advanced Variable Charge Gun XL Autogun Array > --- INVENTORY -------- System Purifier GOLEM Unit Enhanced Force Lance SGEMP Prototype Sigix Containment Pod [Rating: 218] Favorites ----------- Power Zionite Light DM Reactor Engine Cooled Ion Engine Reactor Zionite Light DM Reactor Propulsion Flying Fortress v7 Hover Unit Hover Unit Flight Unit Flying Fortress v7 Utility 8R-AWN's Armor/EX Device Advanced Shield Generator Storage Assembled Biocell Array Processor Advanced Core Analyzer Hackware Experimental System Shield Protection 8R-AWN's Armor/EX Weapon XL Autogun Array Energy Gun Zionite Phaser-S Energy Cannon Assembled Focal Cannon Ballistic Gun XL Autogun Array Ballistic Cannon Bore Cannon Launcher Mini Grenade Launcher Special Weapon Experimental Stasis Projector Impact Weapon Impact Mace Slashing Weapon Great Axe Piercing Weapon Enhanced Force Lance Build | -11 -10 -10 -9 -9 -9 -8 -8 -8 -7 -7 -7 -7 -6 -6 -6 -6 -6 -6 -5 -5 -5 -5 -5 -4 -4 -4 -4 -4 -4 -3 -3 -2 -2 -2 -1 -1 ------- Run | Scr Mat Min Mat Min Exi Min Mat Sto Fac Low Low Dat Pro Fac Low Low Zio Dee Pro Fac Upp Upp Zhi Pro Fac Ext Cet Arc Hub Res Qua Res Tes Sec Acc Com Slots Evolved 21 | 3 1 2 5 . . 1 . 1 2 . . . . 2 . . . . . . . . . 1 . . . . 1 . . 1 . . . 1 Power 1 | . . . 1 . . . . . . . . . . . . . . . . . . . . . . . . . . . . . . . . . Propulsion 3 | 1 . . 2 . . . . . . . . . . . . . . . . . . . . . . . . . . . . . . . . . Utility 13 | 1 . 2 1 . . 1 . 1 2 . . . . 1 . . . . . . . . . 1 . . . . 1 . . 1 . . . 1 Weapon 4 | 1 1 . 1 . . . . . . . . . . 1 . . . . . . . . . . . . . . . . . . . . . . Parts Attached 230 | 3 18 8 22 2 9 2 6 6 8 . . . 1 2 . 4 . 34 . 6 . . 4 1 . 4 6 . 6 7 14 5 23 19 3 7 Power 18 | 1 1 3 2 . 1 . . 2 . . . . . . . . . 4 . . . . 2 . . 2 . . . . . . . . . . Engine 10 | 1 1 3 2 . 1 . . 2 . . . . . . . . . . . . . . . . . . . . . . . . . . . . Core . | . . . . . . . . . . . . . . . . . . . . . . . . . . . . . . . . . . . . . Reactor 8 | . . . . . . . . . . . . . . . . . . 4 . . . . 2 . . 2 . . . . . . . . . . Propulsion 15 | . 6 1 4 . 1 . . 2 . . . . . . . . . . . . . . . . . . . . . . . . . . . 1 Treads . | . . . . . . . . . . . . . . . . . . . . . . . . . . . . . . . . . . . . . Leg . | . . . . . . . . . . . . . . . . . . . . . . . . . . . . . . . . . . . . . Wheel . | . . . . . . . . . . . . . . . . . . . . . . . . . . . . . . . . . . . . . Hover 10 | . 5 1 4 . . . . . . . . . . . . . . . . . . . . . . . . . . . . . . . . . Flight 5 | . 1 . . . 1 . . 2 . . . . . . . . . . . . . . . . . . . . . . . . . . . 1 Utility 150 | . 5 3 10 . 6 2 6 2 8 . . . 1 1 . 4 . 25 . 3 . . 2 1 . 2 3 . 6 7 14 5 13 15 . 6 Device 94 | . 1 1 3 . 4 . 4 . 5 . . . 1 . . 1 . 14 . 3 . . 2 1 . 2 1 . 3 4 12 4 10 13 . 5 Storage 18 | . 1 . . . . 1 1 . . . . . . . . 2 . 6 . . . . . . . . . . 1 2 1 1 1 1 . . Processor 13 | . 2 1 . . . 1 . 1 1 . . . . 1 . 1 . 1 . . . . . . . . . . . 1 . . 2 1 . . Hackware 2 | . . . . . . . . . . . . . . . . . . . . . . . . . . . . . 1 . 1 . . . . . Protection 23 | . 1 1 7 . 2 . 1 1 2 . . . . . . . . 4 . . . . . . . . 2 . 1 . . . . . . 1 Artifact . | . . . . . . . . . . . . . . . . . . . . . . . . . . . . . . . . . . . . . Weapon 47 | 2 6 1 6 2 1 . . . . . . . . 1 . . . 5 . 3 . . . . . . 3 . . . . . 10 4 3 . Energy Gun 23 | 2 2 . . . . . . . . . . . . . . . . 5 . 1 . . . . . . 2 . . . . . 7 3 1 . Energy Cannon 1 | . . . . . . . . . . . . . . . . . . . . . . . . . . . . . . . . . . . 1 . Ballistic Gun 12 | . 3 1 5 . 1 . . . . . . . . . . . . . . . . . . . . . 1 . . . . . . . 1 . Ballistic Cannon 3 | . . . 1 1 . . . . . . . . . . . . . . . . . . . . . . . . . . . . 1 . . . Launcher 2 | . 1 . . 1 . . . . . . . . . . . . . . . . . . . . . . . . . . . . . . . . Special Weapon 2 | . . . . . . . . . . . . . . . . . . . . . . . . . . . . . . . . . 2 . . . Impact Weapon 1 | . . . . . . . . . . . . . . . . . . . . 1 . . . . . . . . . . . . . . . . Slashing Weapon 2 | . . . . . . . . . . . . . . 1 . . . . . 1 . . . . . . . . . . . . . . . . Piercing Weapon 1 | . . . . . . . . . . . . . . . . . . . . . . . . . . . . . . . . . . 1 . . Special Melee Weapon . | . . . . . . . . . . . . . . . . . . . . . . . . . . . . . . . . . . . . . Unidentified Prototypes 51 | . . . 2 . 4 . . 1 . . . . . . . . . 10 . 2 . . 3 . . . 3 . 1 3 5 1 9 6 . 1 Parts Lost 6 | . . 1 2 . . . . . . . . . . . . . . 1 . 1 . . . . . . . . . . . . . . . 1 Power . | . . . . . . . . . . . . . . . . . . . . . . . . . . . . . . . . . . . . . Propulsion 1 | . . . 1 . . . . . . . . . . . . . . . . . . . . . . . . . . . . . . . . . Utility 5 | . . 1 1 . . . . . . . . . . . . . . 1 . 1 . . . . . . . . . . . . . . . 1 Weapon . | . . . . . . . . . . . . . . . . . . . . . . . . . . . . . . . . . . . . . Highest Loss Streak 1 | . . 1 1 . . . . . . . . . . . . . . 1 . 1 . . . . . . . . . . . . . . . 1 Average Slot Usage (%) 70 | . 94 96 91 99 72 54 55 57 61 63 63 63 63 65 66 66 66 64 66 65 66 66 65 66 68 67 68 68 69 69 68 70 69 69 69 70 Engine 5 | . 13 10 9 13 13 12 12 11 10 10 10 10 10 9 9 9 9 . . . . . . . . . . . . . . . . . . . Reactor 4 | . . . . . . . . . . . . . . . . . . 7 9 9 9 9 9 9 9 8 9 9 8 8 8 8 8 8 8 8 Hover 4 | . 22 20 21 26 16 . . . . . . . . . . . . . . . . . . . . . . . . . . . . . . . Flight 3 | . 1 . . . 2 6 6 5 5 5 5 5 5 4 4 4 4 4 4 4 4 4 4 4 4 4 4 4 4 4 4 4 4 4 4 3 Device 14 | . 11 9 7 6 7 6 7 6 8 10 10 10 10 9 9 8 9 16 19 18 19 19 18 20 22 22 22 22 22 21 20 24 25 25 25 27 Storage 5 | . . 10 7 6 6 6 5 5 5 5 5 5 5 4 4 4 4 5 4 4 4 4 4 4 4 4 4 4 4 4 4 4 4 7 8 8 Processor 9 | . 4 10 8 6 4 3 6 8 14 15 15 15 15 17 19 19 19 8 9 9 9 9 9 9 9 9 7 4 4 8 8 8 8 8 8 8 Protection 9 | . 7 5 10 13 11 12 10 9 9 10 10 10 10 9 9 9 9 9 9 9 9 9 9 9 9 9 10 13 11 8 8 8 8 8 8 7 Energy Gun 2 | . 20 . . . . . . . . . . . . . . . . 3 4 3 4 4 4 4 4 4 3 4 4 4 4 4 2 3 3 4 Ballistic Gun 6 | . 5 20 21 19 5 6 6 5 5 5 5 5 5 4 4 4 4 4 4 4 4 4 4 4 4 4 4 4 4 4 4 4 4 4 4 4 Naked Turns . | . . . . . . . . . . . . . . . . . . . . . . . . . . . . . . . . . . . . . Heaviest Build 88 | 5 16 20 38 38 58 59 61 61 65 63 63 63 63 67 67 68 68 83 83 86 81 81 81 83 83 85 84 84 87 83 83 87 87 88 85 87 Greatest Support 97 | 8 21 21 41 41 87 87 87 87 87 87 87 87 87 87 87 87 87 97 87 87 87 87 87 87 87 87 87 87 87 87 87 87 87 87 87 87 Greatest Overweight (x) 4 | . . . 2 . 1 . . 3 . 3 . . 3 . . . . . . . . . . . . 4 . . . . . . . 4 4 3 Average Overweight (x) . | . . . . . . . . . . . . . . . . . . . . . . . . . . . . . . . . . . . . . Largest Inventory Capacity 8 | 2 2 2 4 4 4 4 4 4 4 4 4 4 4 4 4 4 4 6 6 6 6 6 6 6 7 7 7 7 7 7 7 7 8 8 8 8 Average Capacity 5 | 1 2 2 3 4 4 4 4 4 4 4 4 4 4 4 4 4 4 5 6 6 6 6 6 6 6 7 7 7 7 7 7 7 7 8 8 8 Most Carried 8 | 2 2 2 4 4 4 4 4 4 4 4 4 4 4 4 4 4 4 6 6 6 6 6 6 6 7 7 7 7 7 7 7 7 8 8 8 8 Average Carried 4 | . 1 1 2 4 2 3 3 3 3 4 4 4 3 3 3 4 4 4 6 5 6 6 5 5 6 7 6 7 6 6 6 6 7 7 8 7 Final Capacity 8 | 2 2 2 4 4 4 4 4 4 4 4 4 4 4 4 4 4 4 6 6 6 6 6 6 6 7 7 7 7 7 7 7 7 8 8 8 8 Final Carried 8 | 2 2 2 4 4 4 4 4 4 4 4 4 4 4 4 4 4 4 6 6 6 6 6 6 5 7 7 7 7 7 7 7 6 8 8 8 6 Class Distribution -------------------- 23% | Scavenger-Scout 12% | Gunner 11% | Commander-Gunner 10% | Scavenger-Sprinter 10% | Scavenger-Gunner 9% | Scavenger-Mutant 7% | Scavenger-Tank 7% | Mutant 5% | Tank Dominant Class ---------------- Mutant | -10/Materials Mutant | -10/Mines Scavenger-Tank | -9/Materials Scavenger-Tank | -9/Mines Tank | -9/Exiles Tank | -8/Mines Tank | -8/Materials Gunner | -8/Storage Gunner | -7/Factory Gunner | -7/Lower Caves Commander-Gunner | -7/Lower Caves Commander-Gunner | -7/Data Miner Commander-Gunner | -6/Proximity Caves Commander-Gunner | -6/Factory Commander-Gunner | -6/Lower Caves Gunner | -6/Lower Caves Gunner | -6/Zion Scavenger-Mutant | -6/Deep Caves Scavenger-Scout | -5/Proximity Caves Scavenger-Scout | -5/Factory Scavenger-Sprinter | -5/Upper Caves Scavenger-Sprinter | -5/Upper Caves Scavenger-Sprinter | -5/Zhirov Scavenger-Sprinter | -4/Proximity Caves Scavenger-Sprinter | -4/Factory Scavenger-Sprinter | -4/Extension Scavenger-Sprinter | -4/Cetus Scavenger-Sprinter | -4/Archives Scavenger-Sprinter | -4/Hub_04(d) Scavenger-Scout | -3/Research Scavenger-Scout | -3/Quarantine Scavenger-Scout | -2/Research Scavenger-Scout | -2/Testing Scavenger-Scout | -2/Section 7 Scavenger-Scout | -1/Access Scavenger-Scout | -1/Command Resources | -11 -10 -10 -9 -9 -9 -8 -8 -8 -7 -7 -7 -7 -6 -6 -6 -6 -6 -6 -5 -5 -5 -5 -5 -4 -4 -4 -4 -4 -4 -3 -3 -2 -2 -2 -1 -1 ----------- Run | Scr Mat Min Mat Min Exi Min Mat Sto Fac Low Low Dat Pro Fac Low Low Zio Dee Pro Fac Upp Upp Zhi Pro Fac Ext Cet Arc Hub Res Qua Res Tes Sec Acc Com Matter Collected 29489 | 230 414 105 1886 163 535 483 1107 971 1432 250 229 . 636 709 150 570 . 2945 540 656 87 200 79 905 798 1235 495 195 645 1245 1680 798 2324 2982 549 1261 Remotely . | . . . . . . . . . . . . . . . . . . . . . . . . . . . . . . . . . . . . . Salvage Created 39931 | . 558 54 2648 233 516 386 1171 1300 1830 98 238 . 826 1088 450 790 . 5902 770 1275 . 177 79 1506 1903 1353 736 416 1063 1120 1757 1564 2904 3641 384 1195 Parts 2160 | . 44 5 170 13 51 37 82 82 136 10 14 . 68 73 15 46 . 73 41 75 4 11 3 63 99 72 33 19 68 57 138 115 171 175 15 82 Haulers Intercepted 21 | . 2 . 5 . . . 2 6 1 . . . . 1 . . . . . 1 . . . . . . . . . . 1 1 . . 1 . Recyclers Shooed 4 | . . . 1 . . . . 1 . . . . . . . . . . . 1 . . . . . . . . . . . 1 . . . . Parts Field Recycled . | . . . . . . . . . . . . . . . . . . . . . . . . . . . . . . . . . . . . . Retrieved Matter . | . . . . . . . . . . . . . . . . . . . . . . . . . . . . . . . . . . . . . Parts Self-Destructed 253 | . . . . . . . . . . 4 11 . 64 . 14 33 . . 47 . 4 11 2 63 . . . . . . . . . . . . Prevented . | . . . . . . . . . . . . . . . . . . . . . . . . . . . . . . . . . . . . . Kills | -11 -10 -10 -9 -9 -9 -8 -8 -8 -7 -7 -7 -7 -6 -6 -6 -6 -6 -6 -5 -5 -5 -5 -5 -4 -4 -4 -4 -4 -4 -3 -3 -2 -2 -2 -1 -1 ------- Run | Scr Mat Min Mat Min Exi Min Mat Sto Fac Low Low Dat Pro Fac Low Low Zio Dee Pro Fac Upp Upp Zhi Pro Fac Ext Cet Arc Hub Res Qua Res Tes Sec Acc Com Combat Hostiles Destroyed 730 | . 17 10 66 7 6 18 27 28 47 2 6 . 16 20 6 13 . 93 20 22 1 4 . 28 29 22 10 8 14 14 26 23 38 58 5 26 Guns 694 | . 15 2 57 6 2 18 27 28 36 2 6 . 16 20 6 13 . 93 20 22 1 4 . 28 29 22 10 8 14 14 26 23 38 58 4 26 Cannons 8 | . . . 7 1 . . . . . . . . . . . . . . . . . . . . . . . . . . . . . . . . AOE 28 | . 2 8 2 . 4 . . . 11 . . . . . . . . . . . . . . . . . . . . . . . . . 1 . Classes Destroyed 33 | . 6 1 6 . 2 2 . . 3 1 1 . 1 1 . . . 3 . . . . . . . . . . . . . 1 3 2 . . Worker 14 | . 1 . 1 . . . 1 . 1 . . . . . . . . . . 1 . . . . 1 . . . 4 1 . . 2 1 . . Builder 12 | . . . 2 . . . . 1 2 . . . . . . . . . . . . . . . 1 2 . . 1 . . 1 2 . . . Tunneler 2 | . . . . . . 1 . . . . . . . . . . . . . . . . . . 1 . . . . . . . . . . . Hauler 21 | . 2 . 5 . . . 2 6 1 . . . . 1 . . . . . 1 . . . . . . . . . . 1 1 . . 1 . Recycler 3 | . . . . . . . . . . . . . . . . . . . . . . . . . . . . . . . . 1 1 . . 1 Carrier 1 | . . . 1 . . . . . . . . . . . . . . . . . . . . . . . . . . . . . . . . . Operator 20 | . 1 . 3 . . . . 1 3 . . . . 1 . . . . . 1 . . . . . . . . 3 1 2 1 . 3 . . Drone 3 | . . . . . . . . . . . . . . . . . . . . . . . . . . . . . . . . . . 3 . . Turret 1 | . . . . . 1 . . . . . . . . . . . . . . . . . . . . . . . . . . . . . . . Watcher 47 | . 3 . 5 . . . 5 2 5 . . . . 1 . . . . . 4 . . . . 5 . . . 2 1 2 5 1 3 1 2 Swarmer 130 | . 6 . 11 1 . 11 7 9 7 . . . . 4 . . . . 10 . . . . 5 9 4 2 . 5 3 4 10 . 8 . 14 Saboteur 5 | . . . . . . . . . . . . . 2 1 . . . . . . . . . 1 . . . . . . . . . 1 . . Grunt 216 | . 11 2 42 4 . 5 9 13 21 . 3 . 4 7 2 10 . 1 5 10 . 3 . 12 8 10 . 8 3 . 2 . 10 11 . . Brawler 24 | . . . 3 . . 1 . . 3 . . . 1 1 1 1 . . 1 1 . . . 5 . . . . . . . . 3 3 . . Duelist 15 | . . . 1 2 . . 1 . . . . . 2 . . . . . 1 1 . . . 1 1 . . . . . . . 1 4 . . Protector 8 | . . . 2 . . . . . . . . . 1 1 . . . . . . . . . . . . . . . . . . 2 2 . . Researcher 5 | . . . . . . . . . . . . . . . . . . . . . . . . . . . . . . . . . 4 1 . . Sentry 89 | . . . 7 . . . 10 6 8 1 1 . 5 3 . . . . 1 3 . 1 . 2 5 4 . . 4 8 3 8 . 6 1 2 Demolisher 4 | . . . . . . . . . 2 . . . . . . . . . . . . . . . . 1 . . . . . . 1 . . . Specialist 1 | . . . . . . . . . 1 . . . . . . . . . . . . . . . . . . . . . . . . . . . Hunter 43 | . . . . . . 1 . 1 2 . 1 . 2 1 2 . . . 2 1 1 . . 2 6 . . . 2 . 6 . 11 . . 2 Programmer 30 | . . . . . . . . . 3 . . . . 2 . . . . . 5 . . . . . 1 1 . . 1 . 5 7 2 . 3 Q-Series 1 | . . . . . . . . . . . . . . . . . . . . . . . . . . . . . . . . . . 1 . . Behemoth 7 | . . . . . . . . . . . . . . 1 . . . . . 1 . . . . . 2 . . . 2 . . . 1 . . Cetus Guard 7 | . . . . . . . . . . . . . . . . . . . . . . . . . . . 7 . . . . . . . . . Quarantine Guard 11 | . . . . . . . . . . . . . . . . . . . . . . . . . . . . . . . 11 . . . . . M Guard 2 | . . . . . . . . . . . . . . . . . . . . . . . . . . . . . . . . . . . . 2 Tracker 11 | . . . . . . . . . . . . . . . . . . . . . . . . . . . . . . . . . . 9 2 . Combat Programmer 9 | . . . . . . . . . . . . . . . . . . . . . . . . . . . . . . . . . . 5 2 2 Striker 2 | . . . . . . . . . . . . . . . . . . . . . . . . . . . . . . . . . 2 . . . Alpha 7 3 | . . . . . . . . . . . . . . . . . . . . . . . . . . . . . . . . . 1 2 . . Zionite 3 | . . . . . 3 . . . . . . . . . . . . . . . . . . . . . . . . . . . . . . . Z-Light 6 | . . . . . . . . . . . . . . . . . . 6 . . . . . . . . . . . . . . . . . . Master Thief 4 | . . . . . . . . . . . 1 . . . 1 2 . . . . . . . . . . . . . . . . . . . . Assembler 1 | . . . . . . . . . . . . . . . . . . 1 . . . . . . . . . . . . . . . . . . Assembled 47 | . . 8 . . 6 . . . . . . . . . . . . 33 . . . . . . . . . . . . . . . . . . Golem 54 | . . . . . . . . . . . . . . . . . . 54 . . . . . . . . . . . . . . . . . . Thug 1 | . . . . . . . . . . . . . . . . . . . . . . . . . . . 1 . . . . . . . . . Mutant 1 | . . . . . . . . . . 1 . . . . . . . . . . . . . . . . . . . . . . . . . . Best Kill Streak 29 | . 4 8 12 2 6 8 5 13 14 1 2 . 4 7 3 4 . 29 15 5 1 4 . 18 9 7 4 8 19 5 5 8 9 22 4 12 Combat Bots Only 28 | . 3 8 10 2 5 7 5 10 13 1 2 . 4 7 3 4 . 28 15 5 1 4 . 18 6 5 4 8 9 4 5 8 8 14 4 11 Max Kills in Single Turn 11 | . 2 3 3 1 3 2 2 2 11 1 1 . 2 3 1 2 . 4 3 1 1 2 . 2 3 2 2 1 7 2 2 2 3 3 1 2 Gunslinging 1 | . . . 1 . . . . . . . . . . . . . . . . . . . . . . . . . . . . . . . . . Exploded 11 | . 2 3 2 . 3 . . . 11 . . . . . . . . . . . . . . . . . . . . . . . . . 1 . Melee . | . . . . . . . . . . . . . . . . . . . . . . . . . . . . . . . . . . . . . Uniques/NPCs Destroyed 4 | . . . . . 2 . . . . . . . . . . . . 1 . . . . . . . . . . . . . . . . . 1 8R-AWN (-9/Exiles) EX-HEX (-9/Exiles) EX-DEC (-9/Exiles) EX-BIN (-9/Exiles) Z-Imprinter (-6/Deep Caves) MAIN.C Shell (-1/Command) Combat | -11 -10 -10 -9 -9 -9 -8 -8 -8 -7 -7 -7 -7 -6 -6 -6 -6 -6 -6 -5 -5 -5 -5 -5 -4 -4 -4 -4 -4 -4 -3 -3 -2 -2 -2 -1 -1 -------- Run | Scr Mat Min Mat Min Exi Min Mat Sto Fac Low Low Dat Pro Fac Low Low Zio Dee Pro Fac Upp Upp Zhi Pro Fac Ext Cet Arc Hub Res Qua Res Tes Sec Acc Com Damage Taken 17620 | . 853 691 1780 120 296 174 242 117 808 37 68 . 388 195 . 72 . 2016 152 319 91 42 . 263 321 232 96 13 373 241 888 657 573 2135 123 3244 Core 10393 | . 697 519 1300 58 152 75 105 50 354 15 29 . 164 103 . 31 . 979 77 167 40 26 . 151 151 124 38 10 181 151 541 363 340 1207 68 2127 Absorbed by Shields 5335 | . . . 417 45 70 69 95 52 300 14 27 . 143 74 . 25 . 669 58 121 36 16 . 101 123 89 35 5 113 81 318 222 212 796 44 965 Redirected to Core 8831 | . 478 444 1036 50 145 75 83 43 330 15 20 . 164 59 . 31 . 633 77 152 40 9 . 140 151 124 38 10 181 151 425 350 274 1132 68 1903 Core Remaining (%) 89 | 100 . 47 . . . 99 . 100 . . . . 100 . . . . . 100 . . . . 100 . . . . 95 . 100 . . 57 . . Volleys Fired 2536 | . 71 10 158 12 40 28 54 59 98 7 16 . 41 43 14 28 . 615 36 74 8 9 15 64 103 61 35 14 45 53 120 79 123 237 22 144 Largest 4 | . 2 3 4 4 1 1 1 1 1 1 1 . 1 1 1 1 . 2 2 2 1 1 1 1 1 1 1 1 1 1 1 1 1 1 1 1 Hottest 240 | . 80 70 126 126 60 60 60 60 60 60 60 . 60 60 60 60 . 133 120 120 60 60 60 60 60 60 240 80 80 80 240 240 240 240 240 240 Shots Fired 2960 | . 138 15 464 41 40 28 54 59 98 7 16 . 41 43 14 28 . 633 39 75 8 9 15 64 103 61 35 14 45 53 120 79 122 235 22 142 Gun 2885 | . 135 8 409 36 37 28 54 59 98 7 16 . 41 43 14 28 . 633 39 75 8 9 15 64 103 61 35 14 45 53 120 79 120 235 22 142 Cannon 60 | . . . 55 5 . . . . . . . . . . . . . . . . . . . . . . . . . . . . . . . . Launcher 13 | . 3 7 . . 3 . . . . . . . . . . . . . . . . . . . . . . . . . . . . . . . Special 2 | . . . . . . . . . . . . . . . . . . . . . . . . . . . . . . . . . 2 . . . Kinetic 2148 | . 16 8 464 41 37 28 54 59 98 7 16 . 41 43 14 28 . 169 36 46 8 9 . 58 56 50 29 13 39 45 100 73 118 205 17 123 Thermal 228 | . 119 . . . . . . . . . . . . . . . . 10 . . . . . . . . 2 1 6 8 20 6 2 30 5 19 Explosive 13 | . 3 7 . . 3 . . . . . . . . . . . . . . . . . . . . . . . . . . . . . . . Electromagnetic . | . . . . . . . . . . . . . . . . . . . . . . . . . . . . . . . . . . . . . Phasic 569 | . . . . . . . . . . . . . . . . . . 454 3 29 . . 15 6 47 11 4 . . . . . . . . . Robot Hit Streak 101 | . 14 7 27 19 20 7 24 19 20 22 16 . 17 28 11 16 . 101 42 28 11 26 30 32 28 52 32 28 33 69 42 20 54 78 26 97 Robot Miss Streak 8 | . 3 1 3 4 5 4 5 4 8 1 3 . 2 2 4 5 . 4 5 5 6 1 . 3 3 2 2 2 3 2 3 3 5 5 6 3 Penetration Max 1 | . . . 1 . . . . . . . . . . . . . . . . . . . . . . . . . . . . . . . . . Secondary Targets 8 | . 4 . 3 . . . . . . . . . . . . . . 1 . . . . . . . . . . . . . . . . . . Max Gunslinging Chain 1 | . 1 . 1 . . . . . . . . . . . . . . 1 . . . . . . . . . . . . . . . . . . Shots Hit Robots 2586 | . 97 7 311 26 38 27 54 55 91 6 16 . 40 41 13 28 . 587 39 71 8 9 15 63 91 59 29 13 45 48 96 73 119 218 18 135 Core Hits 2560 | . 42 23 119 13 43 26 55 50 102 6 11 . 43 50 14 36 . 511 36 65 5 12 8 77 103 68 41 25 51 61 152 91 175 281 28 137 Critical Hits 25 | . . . 22 1 . . . . . . . . . . . . . 1 . . . . . . . . . . . . . . . 1 . . Critical Kills 9 | . . . 7 1 . . . . . . . . . . . . . . . . . . . . . . . . . . . . . 1 . . Critical Parts Destroyed 16 | . . . 15 . . . . . . . . . . . . . . 1 . . . . . . . . . . . . . . . . . . Melee Attacks 7 | . . . . . . . . . . . . . . . . . . 2 . . . . . . . . . . . . . . . 5 . . Impact . | . . . . . . . . . . . . . . . . . . . . . . . . . . . . . . . . . . . . . Slashing 2 | . . . . . . . . . . . . . . . . . . 2 . . . . . . . . . . . . . . . . . . Piercing 5 | . . . . . . . . . . . . . . . . . . . . . . . . . . . . . . . . . . 5 . . Sneak Attacks . | . . . . . . . . . . . . . . . . . . . . . . . . . . . . . . . . . . . . . Combat Hostiles . | . . . . . . . . . . . . . . . . . . . . . . . . . . . . . . . . . . . . . Follow-up Attacks . | . . . . . . . . . . . . . . . . . . . . . . . . . . . . . . . . . . . . . Damage Inflicted 139093 | . 1316 687 5327 412 2492 1419 3215 3058 7386 472 573 . 2488 2666 709 1770 . 25766 2035 4019 351 754 495 3581 5328 4304 2373 1264 3076 3695 7020 5329 9076 15184 1443 10010 Guns 132848 | . 1139 66 4400 394 2068 1419 3215 3058 5220 472 573 . 2488 2666 709 1770 . 25519 2035 4019 351 754 495 3581 5328 4304 2373 1264 2206 3695 7020 5329 9076 14523 1309 10010 Cannons 691 | . . . 673 18 . . . . . . . . . . . . . . . . . . . . . . . . . . . . . . . . Explosions 4646 | . 177 621 254 . 424 . . . 2166 . . . . . . . . . . . . . . . . . . . 870 . . . . . 134 . Melee 908 | . . . . . . . . . . . . . . . . . . 247 . . . . . . . . . . . . . . . 661 . . Ramming . | . . . . . . . . . . . . . . . . . . . . . . . . . . . . . . . . . . . . . Kinetic 113873 | . 152 66 5073 412 2068 1419 3215 3058 5220 472 573 . 2488 2666 709 1770 . 11684 1936 3047 351 754 . 3368 4143 4001 2373 1264 2052 3597 7020 5329 9076 14123 1237 9157 Thermal 4969 | . 987 . . . . . . . 2166 . . . . . . . . 239 . . . . . . . . . . 154 98 . . . 400 72 853 Explosive 1610 | . 177 621 254 . 424 . . . . . . . . . . . . . . . . . . . . . . . . . . . . . 134 . Electromagnetic 870 | . . . . . . . . . . . . . . . . . . . . . . . . . . . . . 870 . . . . . . . Impact . | . . . . . . . . . . . . . . . . . . . . . . . . . . . . . . . . . . . . . Slashing 247 | . . . . . . . . . . . . . . . . . . 247 . . . . . . . . . . . . . . . . . . Piercing 661 | . . . . . . . . . . . . . . . . . . . . . . . . . . . . . . . . . . 661 . . Phasic 16863 | . . . . . . . . . . . . . . . . . . 13596 99 972 . . 495 213 1185 303 . . . . . . . . . . Highest Corruption 13 | . 2 2 1 2 2 . 2 2 1 . . . . . . . . . . 1 . . . . . 1 . . 5 . . 3 2 7 2 13 Average Corruption 2 | . 2 2 1 1 1 . 2 1 1 . . . . . . . . . . 1 . . . . . 1 . . 2 . . 2 1 2 1 6 Corruption Purged 20 | . . . . . 2 . . 2 2 . . . . . . . . . . 1 . . . . . 1 . . 1 . . 1 3 4 . 3 Effects 77 | . 6 3 5 6 3 . 2 . 1 . . . . . . . . . . . . . . . . . . . 1 . . 4 5 11 . 30 Message Errors 17 | . 1 2 2 3 . . 1 . . . . . . . . . . . . . . . . . . . . . . . . 2 . 2 . 4 Matter Fused 4 | . . . . . . . . . . . . . . . . . . . . . . . . . . . . . . . . 1 . 2 . 1 Heat Flow Errors 3 | . . . . . . . . . . . . . . . . . . . . . . . . . . . . . . . . . . 1 . 2 Energy Discharges 7 | . . 1 . 1 . . . . . . . . . . . . . . . . . . . . . . . . 1 . . . 2 . . 2 Parts Rejected 1 | . . . . . . . . . . . . . . . . . . . . . . . . . . . . . . . . . . . . 1 Data Loss (minor) 9 | . 3 . . 1 1 . 1 . 1 . . . . . . . . . . . . . . . . . . . . . . . . 1 . 1 Misdirections 1 | . . . . . . . . . . . . . . . . . . . . . . . . . . . . . . . . . . . . 1 Targeting Errors 28 | . 1 . 1 1 2 . . . . . . . . . . . . . . . . . . . . . . . . . . 1 2 3 . 17 Weapon Failures 7 | . 1 . 2 . . . . . . . . . . . . . . . . . . . . . . . . . . . . . 1 2 . 1 Overload Shots 48 | . . . . . . . . . . . . . . . . . . . . . . . . . . . 1 . . . 5 5 2 13 3 19 Effects 4 | . . . . . . . . . . . . . . . . . . . . . . . . . . . . . . . 2 . . . . 2 Energy Bleed 2 | . . . . . . . . . . . . . . . . . . . . . . . . . . . . . . . 1 . . . . 1 Heat Surge 2 | . . . . . . . . . . . . . . . . . . . . . . . . . . . . . . . 1 . . . . 1 Overflow Damage 493 | . 14 38 8 . 26 . . . 276 . . . . . . . . . . . . . . . . . . . 131 . . . . . . . Projectiles . | . . . . . . . . . . . . . . . . . . . . . . . . . . . . . . . . . . . . . Explosions 493 | . 14 38 8 . 26 . . . 276 . . . . . . . . . . . . . . . . . . . 131 . . . . . . . Melee . | . . . . . . . . . . . . . . . . . . . . . . . . . . . . . . . . . . . . . Knockbacks 12 | . . . 12 . . . . . . . . . . . . . . . . . . . . . . . . . . . . . . . . . Impact . | . . . . . . . . . . . . . . . . . . . . . . . . . . . . . . . . . . . . . Kinetic 9 | . . . 9 . . . . . . . . . . . . . . . . . . . . . . . . . . . . . . . . . Secondary 3 | . . . 3 . . . . . . . . . . . . . . . . . . . . . . . . . . . . . . . . . Self-Inflicted Damage 926 | . 46 47 294 . . . . . 412 . . . . . . . . . . . . . . . . . . . 127 . . . . . . . Shots 12 | . 1 1 3 . . . . . 5 . . . . . . . . . . . . . . . . . . . 2 . . . . . . . Rammed . | . . . . . . . . . . . . . . . . . . . . . . . . . . . . . . . . . . . . . Targets Rammed . | . . . . . . . . . . . . . . . . . . . . . . . . . . . . . . . . . . . . . Kicked . | . . . . . . . . . . . . . . . . . . . . . . . . . . . . . . . . . . . . . Crushed . | . . . . . . . . . . . . . . . . . . . . . . . . . . . . . . . . . . . . . Highest Temperature 522 | . 7 24 522 . 166 126 86 87 179 108 108 . 200 90 73 125 . 519 233 422 117 207 16 239 176 192 202 132 192 169 390 226 189 233 192 192 Average Temperature 74 | . 3 18 112 . 55 40 27 32 57 38 53 . 56 32 32 43 . 85 88 89 49 91 10 72 27 51 83 73 61 58 83 66 73 100 120 112 Received Heat Transfer 2062 | . 282 45 602 34 6 30 60 30 120 19 20 . 83 45 . 24 . 204 12 69 . 6 . 44 33 30 . 9 12 30 12 57 30 54 . 60 Effects 14 | . . . 10 . . . . . . . . . . . . . . 3 . . . . . . . . 1 . . . . . . . . . Shutdowns 6 | . . . 6 . . . . . . . . . . . . . . . . . . . . . . . . . . . . . . . . . Energy Bleed 2 | . . . . . . . . . . . . . . . . . . 2 . . . . . . . . . . . . . . . . . . Interference 1 | . . . . . . . . . . . . . . . . . . . . . . . . . . . 1 . . . . . . . . . Matter Decay 4 | . . . 4 . . . . . . . . . . . . . . . . . . . . . . . . . . . . . . . . . Short Circuit 1 | . . . . . . . . . . . . . . . . . . 1 . . . . . . . . . . . . . . . . . . Siege Activations . | . . . . . . . . . . . . . . . . . . . . . . . . . . . . . . . . . . . . . Robots Corrupted 1 | . . . . . . . . . . . . . . . . . . . . . . . . . . . . . 1 . . . . . . . Combat Hostiles . | . . . . . . . . . . . . . . . . . . . . . . . . . . . . . . . . . . . . . Parts Fried 9 | . . . . . . . . . . . . . . . . . . . . . . . . . . . . 1 7 . . . 1 . . . Impact Corruptions . | . . . . . . . . . . . . . . . . . . . . . . . . . . . . . . . . . . . . . Robots Melted . | . . . . . . . . . . . . . . . . . . . . . . . . . . . . . . . . . . . . . Combat Hostiles . | . . . . . . . . . . . . . . . . . . . . . . . . . . . . . . . . . . . . . Parts Melted 6 | . 1 . . . . . . . 1 . . . . . . . . 2 . . . . . . . . . 1 . . . . 1 . . . Heat Transferred 5096 | . 2200 . . . . . . . 1100 . . . . . . . . 259 . . . . . . . . . . 222 111 . . . 531 74 599 Parts Sabotaged . | . . . . . . . . . . . . . . . . . . . . . . . . . . . . . . . . . . . . . Parts Stolen . | . . . . . . . . . . . . . . . . . . . . . . . . . . . . . . . . . . . . . Parts Stripped . | . . . . . . . . . . . . . . . . . . . . . . . . . . . . . . . . . . . . . Power Chain Reactions . | . . . . . . . . . . . . . . . . . . . . . . . . . . . . . . . . . . . . . Missiles Intercepted . | . . . . . . . . . . . . . . . . . . . . . . . . . . . . . . . . . . . . . Alert | -11 -10 -10 -9 -9 -9 -8 -8 -8 -7 -7 -7 -7 -6 -6 -6 -6 -6 -6 -5 -5 -5 -5 -5 -4 -4 -4 -4 -4 -4 -3 -3 -2 -2 -2 -1 -1 ------- Run | Scr Mat Min Mat Min Exi Min Mat Sto Fac Low Low Dat Pro Fac Low Low Zio Dee Pro Fac Upp Upp Zhi Pro Fac Ext Cet Arc Hub Res Qua Res Tes Sec Acc Com Peak Influence 2444 | . 357 145 1425 731 . 492 1130 1031 2201 . . . . 1014 . . . . . 866 . . . . 1463 969 796 747 1369 1517 1485 1690 2444 2294 1704 1200 Average Influence 899 | . 224 124 812 653 . 329 712 842 1335 . . . . 761 . . . . . 508 . . . . 871 555 490 567 702 972 1143 1297 1529 1525 1481 954 Maximum Alert Level 5 | . 1 . 4 3 . 2 4 3 5 . . . . 3 . . . . . 3 . . . . 4 3 3 3 4 4 4 5 5 5 5 4 Low Security (%) 6 | 100 32 100 10 . . 9 3 . . . . . . . . . . . . . . . . . . . 4 . . . . . . . . . Level 1 12 | . 67 . 15 . . 38 7 . . . . . . 19 . . . . . 18 . . . . . 28 45 31 33 . . . . . . . Level 2 17 | . . . 11 59 . 51 32 9 10 . . . . 17 . . . . . 69 . . . . 44 43 32 20 27 . . . . . . . Level 3 31 | . . . 30 40 . . 53 90 25 . . . . 63 . . . . . 11 . . . . 22 27 17 47 7 81 44 25 29 25 . 73 Level 4 20 | . . . 32 . . . 3 . 24 . . . . . . . . . . . . . . . 33 . . . 30 18 55 55 29 26 80 26 Level 5 5 | . . . . . . . . . 20 . . . . . . . . . . . . . . . . . . . . . . 19 16 12 19 . High Security 5 | . . . . . . . . . 18 . . . . . . . . . . . . . . . . . . . . . . . 24 35 . . Max Security . | . . . . . . . . . . . . . . . . . . . . . . . . . . . . . . . . . . . . . Squads Dispatched 131 | . 3 . 12 1 . . 9 7 15 . . . . 3 . . . . . 6 . . . 1 8 4 . . 3 3 2 4 14 31 4 1 Investigation 37 | . 2 . 6 1 . . 4 3 1 . . . . 2 . . . . . 4 . . . . 4 3 . . 1 1 1 1 1 2 . . Extermination 8 | . . . . . . . . . 2 . . . . . . . . . . 1 . . . . . . . . . . . 1 1 2 . 1 Reinforcement 17 | . 1 . 2 . . . . . 1 . . . . . . . . . . 1 . . . . 1 . . . 2 2 1 . 4 2 . . Assault 41 | . . . 4 . . . 2 . 10 . . . . 1 . . . . . . . . . 1 2 1 . . . . . 2 7 10 1 . Garrison 13 | . . . . . . . 3 4 1 . . . . . . . . . . . . . . . 1 . . . . . . . 1 3 . . Intercept 15 | . . . . . . . . . . . . . . . . . . . . . . . . . . . . . . . . . . 12 3 . Construction Impeded 2 | . . . . . . . . . . . . . . . . . . . . . . . . . 1 . . . 1 . . . . . . . Haulers Reinforced 2 | . . . . . . . . . . . . . . . . . . . . 1 . . . . . . . . . . . . . 1 . . Stealth | -11 -10 -10 -9 -9 -9 -8 -8 -8 -7 -7 -7 -7 -6 -6 -6 -6 -6 -6 -5 -5 -5 -5 -5 -4 -4 -4 -4 -4 -4 -3 -3 -2 -2 -2 -1 -1 --------- Run | Scr Mat Min Mat Min Exi Min Mat Sto Fac Low Low Dat Pro Fac Low Low Zio Dee Pro Fac Upp Upp Zhi Pro Fac Ext Cet Arc Hub Res Qua Res Tes Sec Acc Com Distress Signals 28 | . 1 . 5 . . . 1 2 1 . . . . . . . . . . 1 . . . . 2 2 2 . 1 1 . 3 2 3 . 1 Communications Jammed . | . . . . . . . . . . . . . . . . . . . . . . . . . . . . . . . . . . . . . Distress Signals . | . . . . . . . . . . . . . . . . . . . . . . . . . . . . . . . . . . . . . Times Spotted 1123 | . 23 18 92 7 23 18 33 33 99 2 5 . 17 22 7 13 . 110 21 34 5 4 . 29 43 33 13 25 20 21 32 63 52 115 6 85 Peak Tracking Total 59 | . 3 10 8 2 8 4 4 4 23 1 1 . 5 7 3 4 . 22 9 8 4 3 . 9 7 11 5 16 9 7 5 16 7 23 4 59 Tactical Retreats 46 | . . . 5 . 4 . . . 1 . . . . . . . . 9 . 2 . . . . 1 1 . 1 1 2 . 5 . 8 . 6 Traps | -11 -10 -10 -9 -9 -9 -8 -8 -8 -7 -7 -7 -7 -6 -6 -6 -6 -6 -6 -5 -5 -5 -5 -5 -4 -4 -4 -4 -4 -4 -3 -3 -2 -2 -2 -1 -1 ------- Run | Scr Mat Min Mat Min Exi Min Mat Sto Fac Low Low Dat Pro Fac Low Low Zio Dee Pro Fac Upp Upp Zhi Pro Fac Ext Cet Arc Hub Res Qua Res Tes Sec Acc Com Traps Triggered 22 | . 2 . 3 . . . 1 1 . . . . . . . . . . . . . . . . . 6 . . 3 . 1 2 2 . . 1 Indirectly 1 | . . . . . . . . . . . . . . . . . . . . . . . . . . . . . 1 . . . . . . . Trap Hack Attempts . | . . . . . . . . . . . . . . . . . . . . . . . . . . . . . . . . . . . . . Triggered . | . . . . . . . . . . . . . . . . . . . . . . . . . . . . . . . . . . . . . Disarmed 5 | . . . . . . . . . . . . . . . . . . . . . . . . . . . . . . . 5 . . . . . Reprogrammed . | . . . . . . . . . . . . . . . . . . . . . . . . . . . . . . . . . . . . . Reused . | . . . . . . . . . . . . . . . . . . . . . . . . . . . . . . . . . . . . . Traps Extracted . | . . . . . . . . . . . . . . . . . . . . . . . . . . . . . . . . . . . . . Installed . | . . . . . . . . . . . . . . . . . . . . . . . . . . . . . . . . . . . . . Triggered . | . . . . . . . . . . . . . . . . . . . . . . . . . . . . . . . . . . . . . Machines | -11 -10 -10 -9 -9 -9 -8 -8 -8 -7 -7 -7 -7 -6 -6 -6 -6 -6 -6 -5 -5 -5 -5 -5 -4 -4 -4 -4 -4 -4 -3 -3 -2 -2 -2 -1 -1 ---------- Run | Scr Mat Min Mat Min Exi Min Mat Sto Fac Low Low Dat Pro Fac Low Low Zio Dee Pro Fac Upp Upp Zhi Pro Fac Ext Cet Arc Hub Res Qua Res Tes Sec Acc Com Machines Disabled 102 | . . . 5 . 13 2 2 9 13 1 . . 1 3 . . . 5 . 1 . . . . 1 . 1 1 19 . 8 . 5 11 1 . Max in Single Turn 15 | . . . 2 . 2 1 1 1 4 1 . . 1 1 . . . 1 . 1 . . . . 1 . 1 1 15 . 1 . 1 1 1 . Garrison Access 11 | . . . . . . . . . 1 . . . . 2 . . . . . 1 . . . . . . . . . 1 1 2 1 . 2 . Network Hub 2 | . . . . . . . . . . . . . . . . . . . . . . . . . . . . . 2 . . . . . . . Machines Sabotaged . | . . . . . . . . . . . . . . . . . . . . . . . . . . . . . . . . . . . . . Garrisons Compromised . | . . . . . . . . . . . . . . . . . . . . . . . . . . . . . . . . . . . . . Overloaded Fab Kills . | . . . . . . . . . . . . . . . . . . . . . . . . . . . . . . . . . . . . . Fab Network Shutdowns 3 | . . . . . . . . . 1 . . . . . . . . . . . . . . . . . . . . 1 . . 1 . . . Hacking | -11 -10 -10 -9 -9 -9 -8 -8 -8 -7 -7 -7 -7 -6 -6 -6 -6 -6 -6 -5 -5 -5 -5 -5 -4 -4 -4 -4 -4 -4 -3 -3 -2 -2 -2 -1 -1 --------- Run | Scr Mat Min Mat Min Exi Min Mat Sto Fac Low Low Dat Pro Fac Low Low Zio Dee Pro Fac Upp Upp Zhi Pro Fac Ext Cet Arc Hub Res Qua Res Tes Sec Acc Com Machines Accessed 211 | . 7 . 12 1 2 . 13 17 15 . . 4 4 10 . . . . . 14 . . 9 . 11 9 5 1 6 12 16 10 8 8 9 8 Terminals 141 | . 5 . 8 1 . . 9 15 7 . . . 2 7 . . . . . 6 . . . . 8 9 5 . 6 6 13 8 5 7 6 8 Fabricators 10 | . . . . . . . . . 2 . . . 1 . . . . . . 2 . . . . 1 . . . . 1 . . 2 . 1 . Repair Stations 5 | . 1 . 2 . . . . . 1 . . . . . . . . . . 1 . . . . . . . . . . . . . . . . Recycling Units 10 | . 1 . 1 . . . 1 1 2 . . . 1 1 . . . . . . . . . . . . . . . 2 . . . . . . Scanalyzers 16 | . . . 1 . . . 2 . 2 . . . . . . . . . . 3 . . . . 2 . . . . 2 2 . 1 1 . . Garrison Access 13 | . . . . . . . 1 1 1 . . . . 2 . . . . . 2 . . . . . . . . . 1 1 2 . . 2 . Total Hacks 1121 | . 31 . 38 5 24 . 71 80 40 . . 24 19 41 . . . . . 37 . . 47 . 36 39 12 25 51 75 106 85 60 72 47 56 Successful 657 | . 15 . 24 1 24 . 54 46 31 . . 24 12 24 . . . . . 16 . . 47 . 19 24 10 25 25 31 58 41 27 35 19 25 Failed 459 | . 15 . 13 4 . . 17 33 9 . . . 7 17 . . . . . 21 . . . . 17 14 2 . 26 43 48 44 33 37 28 31 Catastrophic 80 | . . . . 1 . . 1 2 1 . . . 1 1 . . . . . 5 . . . . 5 2 . . 6 9 4 10 8 8 7 9 Database Lockouts 9 | . 1 . 4 . . . . 2 . . . . . . . . . . . . . . . . . 1 . . . 1 . . . . . . Manual 518 | . 17 . 19 5 1 . 33 44 8 . . . 12 19 . . 4 . . 11 . . . . 17 30 8 . 29 32 37 47 25 46 34 40 Terminals 837 | . 24 . 23 5 . . 40 76 21 . . . 15 36 . . . . . 21 . . . . 30 39 12 . 51 56 94 83 45 70 40 56 Fabricators 33 | . . . . . . . . . 6 . . . 3 . . . . . . 4 . . . . 2 . . . . 5 . . 9 . 4 . Repair Stations 14 | . 2 . 8 . . . . . 2 . . . . . . . . . . 2 . . . . . . . . . . . . . . . . Recycling Units 21 | . 5 . 4 . . . 2 2 3 . . . 1 1 . . . . . . . . . . . . . . . 3 . . . . . . Scanalyzers 68 | . . . 3 . . . 22 . 6 . . . . . . . . . . 5 . . . . 4 . . . . 10 10 . 6 2 . . Garrison Access 28 | . . . . . . . 7 2 2 . . . . 4 . . . . . 5 . . . . . . . . . 1 2 2 . . 3 . Terminal Hacks 398 | . 6 . 7 1 24 . 17 24 11 . . 24 10 12 . . . . . 6 . . 47 . 9 13 6 25 17 17 38 26 12 23 8 15 Record 110 | . . . . . 23 . . . . . . 11 1 . . . . . . . . . 36 . . . 4 25 . 1 7 1 . 1 . . Part Schematic 30 | . . . . . . . . 4 2 . . 5 . 1 . . . . . 1 . . 3 . 2 . . . 5 2 4 1 . . . . Robot Schematic 15 | . . . . . . . 1 . 3 . . 5 . . . . . . . . . . . . . 1 . . . 1 3 1 . . . . Robot Analysis 37 | . 1 . 2 1 . . 2 1 1 . . . 6 1 . . . . . 1 . . 4 . . 1 . . . 5 . 6 2 3 . . Prototype ID Bank 33 | . 1 . 1 . . . 3 2 1 . . 3 . 2 . . . . . 2 . . 4 . 1 1 . . 2 2 3 2 . 2 1 . Open Door 9 | . . . . . . . . 4 . . . . 1 . . . . . . . . . . . . 1 1 . . . 1 . . . . 1 Level Access Points 5 | . . . . . . . . 1 . . . . 1 . . . . . . . . . . . . . . . . 1 . . 1 1 . . Branch Access Points 10 | . . . 1 . . . 1 1 . . . . . 1 . . . . . 1 . . . . . . . . 1 1 1 1 1 . . . Emergency Access Points 2 | . . . . . . . . . . . . . . . . . . . . . . . . . . . . . . . 1 1 . . . . Machine Index 3 | . . . . . . . . . 1 . . . . . . . . . . . . . . . . . . . 1 . . 1 . . . . Terminal Index 14 | . 1 . 1 . . . 1 1 1 . . . . 1 . . . . . . . . . . . 1 . . 1 . 1 1 1 1 1 1 Fabricator Index 1 | . . . . . . . . . . . . . . . . . . . . . . . . . . . . . . . . 1 . . . . Repair Station Index 1 | . 1 . . . . . . . . . . . . . . . . . . . . . . . . . . . . . . . . . . . Recycling Unit Index 2 | . . . . . . . 1 . . . . . . . . . . . . . . . . . . . . . . . . 1 . . . . Scanalyzer Index 2 | . . . . . . . . . . . . . . . . . . . . . . . . . . . . . . . 2 . . . . . Garrison Index 5 | . . . . . . . . 1 . . . . . . . . . . . . . . . . . . . . 1 . . 1 2 . . . Alert Level 13 | . . . 1 . . . . . . . . . 1 1 . . . . . 1 . . . . 1 1 . . 1 1 1 . 1 2 . 1 Unreport Threat 34 | . . . . . . . 1 4 1 . . . . . . . . . . . . . . . 3 4 . . 1 2 2 1 1 6 4 4 Locate Traps 28 | . 2 . 1 . . . 2 2 1 . . . . 4 . . . . . . . . . . 1 1 . . . . 4 2 . 3 1 4 Disarm Traps 2 | . . . . . . . . . . . . . . . . . . . . . . . . . . . . . . . 2 . . . . . Dispatch Records 1 | . . . . . . . . . . . . . . . . . . . . . . . . . . . . . 1 . . . . . . . Investigation Status 1 | . . . . . . . . . . . . . . . . . . . . . . . . . . . . . 1 . . . . . . . Recall Investigation 2 | . . . . . . . . . . . . . . . . . . . . . . . . . . 1 . . . . 1 . . . . . Recall Reinforcements 1 | . . . . . . . . . . . . . . . . . . . . . . . . . . . . . . . 1 . . . . . Hauler Manifests 3 | . . . . . . . 2 . . . . . . . . . . . . . . . . . . . . . . . . . . 1 . . Registered Components 7 | . . . . . . . 1 . . . . . . . . . . . . . . . . . . . . . 1 . 1 1 1 1 . 1 Zone Layout 24 | . . . . . . . 2 3 . . . . . 1 . . . . . . . . . . 1 1 1 . 1 1 3 4 2 2 1 1 EX-Prototype ID Bank 1 | . . . . . 1 . . . . . . . . . . . . . . . . . . . . . . . . . . . . . . . Disengage Seal 2 | . . . . . . . . . . . . . . . . . . . . . . . . . . . . . . . . . . . . 2 Fabricator Hacks 17 | . . . . . . . . . 5 . . . 1 . . . . . . 1 . . . . 2 . . . . 2 . . 4 . 2 . Load Schematic 9 | . . . . . . . . . 2 . . . 1 . . . . . . 1 . . . . 1 . . . . 1 . . 2 . 1 . Build 8 | . . . . . . . . . 3 . . . . . . . . . . . . . . . 1 . . . . 1 . . 2 . 1 . Repair Station Hacks 12 | . 1 . 7 . . . . . 2 . . . . . . . . . . 2 . . . . . . . . . . . . . . . . Scan Component 5 | . . . 3 . . . . . 1 . . . . . . . . . . 1 . . . . . . . . . . . . . . . . Repair 5 | . . . 3 . . . . . 1 . . . . . . . . . . 1 . . . . . . . . . . . . . . . . Refit 2 | . 1 . 1 . . . . . . . . . . . . . . . . . . . . . . . . . . . . . . . . . Recycling Unit Hacks 11 | . 2 . 2 . . . 1 . 2 . . . 1 1 . . . . . . . . . . . . . . . 2 . . . . . . Report Inventory 9 | . 1 . 1 . . . 1 . 2 . . . 1 1 . . . . . . . . . . . . . . . 2 . . . . . . Retrieve Components 2 | . 1 . 1 . . . . . . . . . . . . . . . . . . . . . . . . . . . . . . . . . Scanalyzer 47 | . . . 2 . . . 21 . 5 . . . . . . . . . . 3 . . . . 3 . . . . 4 3 . 5 1 . . Insert Component 22 | . . . 1 . . . 6 . 2 . . . . . . . . . . 2 . . . . 2 . . . . 3 3 . 2 1 . . Analyze 25 | . . . 1 . . . 15 . 3 . . . . . . . . . . 1 . . . . 1 . . . . 1 . . 3 . . . Garrison Access Hacks 10 | . . . . . . . . . 1 . . . . 2 . . . . . 1 . . . . . . . . . 1 1 2 . . 2 . Seal Access 10 | . . . . . . . . . 1 . . . . 2 . . . . . 1 . . . . . . . . . 1 1 2 . . 2 . Unauthorized Hacks 162 | . 6 . 6 . . . 15 22 5 . . . . 9 . . . . . 3 . . . . 5 11 4 . 8 5 16 13 6 11 7 10 Terminals 153 | . 5 . 5 . . . 10 21 4 . . . . 9 . . . . . 3 . . . . 5 11 4 . 8 5 16 13 6 11 7 10 Track 31 | . . . . . . . 1 7 . . . . . 1 . . . . . . . . . . . 3 1 . 1 1 3 3 1 3 2 4 Assimilate 6 | . . . . . . . 1 . 1 . . . . 1 . . . . . . . . . . . . . . . . 2 1 . . . . Botnet 102 | . 5 . 5 . . . 7 13 3 . . . . 5 . . . . . 2 . . . . 5 7 3 . 6 3 10 7 4 6 5 6 Detonate 2 | . . . . . . . . . . . . . . . . . . . . . . . . . . . . . 1 . . 1 . . . . Operators 12 | . . . . . . . 1 1 . . . . . 2 . . . . . 1 . . . . . 1 . . . 1 1 1 1 2 . . Fabricators . | . . . . . . . . . . . . . . . . . . . . . . . . . . . . . . . . . . . . . Repair Stations . | . . . . . . . . . . . . . . . . . . . . . . . . . . . . . . . . . . . . . Recycling Units 4 | . 1 . 1 . . . 1 . 1 . . . . . . . . . . . . . . . . . . . . . . . . . . . Reject 4 | . 1 . 1 . . . 1 . 1 . . . . . . . . . . . . . . . . . . . . . . . . . . . Scanalyzers . | . . . . . . . . . . . . . . . . . . . . . . . . . . . . . . . . . . . . . Garrison Access 5 | . . . . . . . 4 1 . . . . . . . . . . . . . . . . . . . . . . . . . . . . Reprogram 3 | . . . . . . . 3 . . . . . . . . . . . . . . . . . . . . . . . . . . . . . Watchers 2 | . . . . . . . 1 1 . . . . . . . . . . . . . . . . . . . . . . . . . . . . Data Cores Recovered 10 | . . . 1 . . . . 1 1 . . . . 1 . . . . . 1 . . . . . . . . . . 1 1 . 3 . . Used 7 | . . . . . . . . 1 1 . . . . 1 . . . . . 1 . . . . . . . . . . 1 1 . 1 . . Hacking Detections 167 | . 7 . 10 1 . . 11 16 11 . . . 3 8 . . . . . 13 . . . . 10 9 4 . 6 9 13 8 6 7 8 7 Full Trace Events 33 | . 4 . 3 1 . . 4 2 1 . . . 2 2 . . . . . 4 . . . . 4 2 . . . . 1 1 . 2 . . Feedback Events 2 | . . . 1 1 . . . . . . . . . . . . . . . . . . . . . . . . . . . . . . . . Corruption 2 | . . . 1 1 . . . . . . . . . . . . . . . . . . . . . . . . . . . . . . . . Feedback Blocked . | . . . . . . . . . . . . . . . . . . . . . . . . . . . . . . . . . . . . . Robot Schematics Acquired 15 | . . . . . . . 1 . 3 . . 5 . . . . . . . . . . . . . 1 . . . 1 3 1 . . . . Robots Built 6 | . . . . . . . . . 1 . . . . . . . . . . . . . . . 1 . . . . . . . 3 . 1 . Matter 1392 | . . . . . . . . . 219 . . . . . . . . . . . . . . . 219 . . . . . . . 735 . 219 . Time 427 | . . . . . . . . . 58 . . . . . . . . . . . . . . . 116 . . . . . . . 195 . 58 . Total Robot Build Rating 30 | . . . . . . . . . 3 . . . . . . . . . . . . . . . 3 . . . . . . . 21 . 3 . Part Schematics Acquired 43 | . . . 1 . . . 5 4 4 . . 5 . 1 . . . . . 2 . . 3 . 3 . . . 5 3 4 1 2 . . . Parts Built 5 | . . . . . . . . . 4 . . . . . . . . . . . . . . . . . . . . 1 . . . . . . Matter 764 | . . . . . . . . . 380 . . . . . . . . . . . . . . . . . . . . 384 . . . . . . Time 163 | . . . . . . . . . 95 . . . . . . . . . . . . . . . . . . . . 68 . . . . . . Total Part Build Rating 28 | . . . . . . . . . 20 . . . . . . . . . . . . . . . . . . . . 8 . . . . . . Parts Repaired 5 | . . . 3 . . . . . 1 . . . . . . . . . . 1 . . . . . . . . . . . . . . . . Time 218 | . . . 77 . . . . . 38 . . . . . . . . . . 103 . . . . . . . . . . . . . . . . Parts Recycled . | . . . . . . . . . . . . . . . . . . . . . . . . . . . . . . . . . . . . . Recycled Matter . | . . . . . . . . . . . . . . . . . . . . . . . . . . . . . . . . . . . . . Retrieved Matter . | . . . . . . . . . . . . . . . . . . . . . . . . . . . . . . . . . . . . . Retrieved Components 18 | . 9 . 9 . . . . . . . . . . . . . . . . . . . . . . . . . . . . . . . . . Parts Scanalyzed 15 | . . . 1 . . . 6 . 2 . . . . . . . . . . 2 . . . . 2 . . . . . . . 2 . . . Part Schematics Acquired 13 | . . . 1 . . . 5 . 2 . . . . . . . . . . 1 . . . . 1 . . . . 1 . . 2 . . . Parts Damaged 2 | . . . . . . . . . . . . . . . . . . . . . . . . . 1 . . . . 1 . . . . . . Bothacking | -11 -10 -10 -9 -9 -9 -8 -8 -8 -7 -7 -7 -7 -6 -6 -6 -6 -6 -6 -5 -5 -5 -5 -5 -4 -4 -4 -4 -4 -4 -3 -3 -2 -2 -2 -1 -1 ------------ Run | Scr Mat Min Mat Min Exi Min Mat Sto Fac Low Low Dat Pro Fac Low Low Zio Dee Pro Fac Upp Upp Zhi Pro Fac Ext Cet Arc Hub Res Qua Res Tes Sec Acc Com Used RIF Installer . | . . . . . . . . . . . . . . . . . . . . . . . . . . . . . . . . . . . . . Robots Hacked . | . . . . . . . . . . . . . . . . . . . . . . . . . . . . . . . . . . . . . Non-combat . | . . . . . . . . . . . . . . . . . . . . . . . . . . . . . . . . . . . . . Combat . | . . . . . . . . . . . . . . . . . . . . . . . . . . . . . . . . . . . . . Robot Hacks Applied . | . . . . . . . . . . . . . . . . . . . . . . . . . . . . . . . . . . . . . Relay Couplers Released 4 | . . . . . . . . . . . . . . 2 . . . . . . . . . . . . . . . . . . 2 . . . Programmers 4 | . . . . . . . . . . . . . . 2 . . . . . . . . . . . . . . . . . . 2 . . . Robots Rewired 27 | . . . . . . . . . . 4 . . 10 1 . . . . 2 . . . . 2 1 6 . . . . . . 1 . . . Allies Hacked 1 | . . . . . . . . . 1 . . . . . . . . . . . . . . . . . . . . . . . . . . . Hacks Repelled . | . . . . . . . . . . . . . . . . . . . . . . . . . . . . . . . . . . . . . Allies | -11 -10 -10 -9 -9 -9 -8 -8 -8 -7 -7 -7 -7 -6 -6 -6 -6 -6 -6 -5 -5 -5 -5 -5 -4 -4 -4 -4 -4 -4 -3 -3 -2 -2 -2 -1 -1 -------- Run | Scr Mat Min Mat Min Exi Min Mat Sto Fac Low Low Dat Pro Fac Low Low Zio Dee Pro Fac Upp Upp Zhi Pro Fac Ext Cet Arc Hub Res Qua Res Tes Sec Acc Com Total Allies 71 | . . 3 . . . . 5 10 2 4 . . 11 2 . . . 1 2 . . . . 2 2 12 5 3 . . 1 1 4 . 1 . Largest Group 12 | . . . . . . . 5 10 10 4 4 4 11 12 8 7 3 4 2 . . . . 2 3 9 9 12 . . 1 1 2 . 1 . Highest-Rated Group 1114 | . . . . . . . 97 173 173 124 124 124 399 443 326 297 164 282 79 . . . . 94 143 396 757 1114 . . 10 26 146 . 26 . Highest-Rated Ally 156 | . . . . . . . 34 34 29 31 31 31 94 94 94 94 94 118 49 . . . . 47 49 156 156 156 . . 10 26 146 . 26 . Total Orders 15 | . . . . . . . . . . . . . . 1 . . . 2 . . . . . . . . 8 . . 2 . . 2 . . . STAY 2 | . . . . . . . . . . . . . . . . . . 1 . . . . . . . . . . . . . . 1 . . . GOTO 5 | . . . . . . . . . . . . . . 1 . . . . . . . . . . . . 4 . . . . . . . . . FOLLOW 6 | . . . . . . . . . . . . . . . . . . 1 . . . . . . . . 4 . . . . . 1 . . . EXPLORE 2 | . . . . . . . . . . . . . . . . . . . . . . . . . . . . . . 2 . . . . . . Ally Attacks 323 | . . 2 . . 12 . 12 25 43 . 2 . 24 5 14 4 . 68 3 . . . . 2 8 25 16 35 . . . . 23 . . . Total Damage 12730 | . . 27 . . 531 . 303 759 535 . 21 . 462 220 375 81 . 5447 69 . . . . 64 141 609 561 1279 . . . . 1246 . . . Kills 65 | . . . . . 5 . 2 7 5 . . . 2 2 1 . . 23 1 . . . . . . 6 5 2 . . . . 4 . . . Allies Corrupted 1 | . . . . . . . . . . . . . . . . 1 . . . . . . . . . . . . . . . . . . . . Allies Melted . | . . . . . . . . . . . . . . . . . . . . . . . . . . . . . . . . . . . . . Turrets Deployed 1 | . . . . . 1 . . . . . . . . . . . . . . . . . . . . . . . . . . . . . . . Intel | -11 -10 -10 -9 -9 -9 -8 -8 -8 -7 -7 -7 -7 -6 -6 -6 -6 -6 -6 -5 -5 -5 -5 -5 -4 -4 -4 -4 -4 -4 -3 -3 -2 -2 -2 -1 -1 ------- Run | Scr Mat Min Mat Min Exi Min Mat Sto Fac Low Low Dat Pro Fac Low Low Zio Dee Pro Fac Upp Upp Zhi Pro Fac Ext Cet Arc Hub Res Qua Res Tes Sec Acc Com Robot Analysis Total 37 | . 1 . 2 1 . . 2 1 1 . . . 6 1 . . . . . 1 . . 4 . . 1 . . . 5 . 6 2 3 . . Derelict Logs Recovered 13 | . . 1 . 1 . . . . . 1 1 . 1 . 2 1 1 . 1 . . . . 3 . . . . . . . . . . . . Drone Launches 2 | . . . . . . . . . . . . . . . . . . . . . . . . . . . . . . 2 . . . . . . Drone Recoveries . | . . . . . . . . . . . . . . . . . . . . . . . . . . . . . . . . . . . . . Exploration | -11 -10 -10 -9 -9 -9 -8 -8 -8 -7 -7 -7 -7 -6 -6 -6 -6 -6 -6 -5 -5 -5 -5 -5 -4 -4 -4 -4 -4 -4 -3 -3 -2 -2 -2 -1 -1 ------------- Run | Scr Mat Min Mat Min Exi Min Mat Sto Fac Low Low Dat Pro Fac Low Low Zio Dee Pro Fac Upp Upp Zhi Pro Fac Ext Cet Arc Hub Res Qua Res Tes Sec Acc Com Turns Passed 20408 | 26 829 258 1893 396 729 339 800 595 1411 381 245 59 516 531 240 296 412 3237 238 824 98 92 131 196 428 630 357 73 198 329 763 621 694 845 341 357 Spaces Moved 28494 | 40 911 350 1299 587 1228 508 1060 840 2094 649 342 89 529 851 325 415 747 3051 316 1063 350 235 301 296 697 575 463 146 439 669 1752 1450 1158 1450 654 565 Core 139 | 40 58 . 4 . 1 . . 1 . 1 . . 17 . . . . . . . . . . . . 1 . . . . . . . 3 7 6 Treads . | . . . . . . . . . . . . . . . . . . . . . . . . . . . . . . . . . . . . . Legs . | . . . . . . . . . . . . . . . . . . . . . . . . . . . . . . . . . . . . . Wheels . | . . . . . . . . . . . . . . . . . . . . . . . . . . . . . . . . . . . . . Hover 3827 | . 799 350 1295 587 796 . . . . . . . . . . . . . . . . . . . . . . . . . . . . . . . Flight 24528 | . 54 . . . 431 508 1060 839 2094 648 342 89 512 851 325 415 747 3051 316 1063 350 235 301 296 697 574 463 146 439 669 1752 1450 1158 1447 647 559 Fastest Speed 25 | 50 40 56 48 48 48 50 50 50 50 50 50 50 50 50 50 50 50 50 50 25 25 25 25 25 25 25 25 25 25 25 25 25 25 25 25 25 Average Speed 41 | 50 54 56 81 48 48 50 50 50 50 50 50 50 54 50 50 50 50 50 50 44 25 25 25 25 25 25 25 25 25 25 25 25 25 25 27 26 Slowest Speed 225 | 50 60 56 150 48 100 50 50 200 50 200 50 50 200 50 50 50 50 50 50 50 25 25 25 25 25 225 25 25 25 25 25 25 50 225 225 175 Overloaded Moves . | . . . . . . . . . . . . . . . . . . . . . . . . . . . . . . . . . . . . . Propulsion Burnouts . | . . . . . . . . . . . . . . . . . . . . . . . . . . . . . . . . . . . . . Robots Hopped 155 | . . . . . . 3 7 5 19 1 . . 5 3 . . . 5 . 24 1 1 . . 7 8 . . 1 9 5 27 9 10 1 4 Cave-ins Triggered 2 | . . 1 . . . . . . . . . . . . . . . . . . . . . . . . . . . . 1 . . . . . Teleports 1 | . . . . . . . . . . . . . . . . . . . . . . . . . . . . . . . 1 . . . . . Exploration Rate (%) 63 | 3 94 68 76 95 92 97 84 93 54 74 54 71 59 29 59 59 86 93 47 26 58 48 62 47 29 77 84 84 52 25 95 49 82 85 21 29 Regions Visited 36 Branch Regions 26 Pre-discovered Areas 10 | . . 1 . 1 1 . . . . 1 . 1 . . . . 2 . . . . . 3 . . . . . . . . . . . . . Known Exits Taken 22 | . . . 1 . . . 1 1 1 1 1 1 1 1 1 1 1 1 1 1 . . . . 1 . . . . 1 1 1 1 1 1 . Unknown Exits Taken 14 | 1 1 1 . 1 1 1 . . . . . . . . . . . . . . 1 1 1 1 . 1 1 1 1 . . . . . . . Scrap Searched 27 | . . 1 . 1 . 3 . . . 7 3 . 1 . 2 2 3 . . . 2 1 . 1 . . . . . . . . . . . . Spaces Dug 15 | . . . . . . . . . . . . . . 1 . . . . . 1 . . . . 2 . 1 . . 1 . 6 . . 3 . Terrain Destroyed 910 | . 23 22 85 5 42 29 46 59 87 3 9 . . 40 5 10 . 28 15 12 1 1 . 22 23 18 4 2 296 1 . 7 . . 15 . Melee . | . . . . . . . . . . . . . . . . . . . . . . . . . . . . . . . . . . . . . Projectile 412 | . . . 35 5 19 29 46 59 23 3 9 . . 14 5 10 . 28 15 12 1 1 . 22 23 18 4 2 18 1 . 7 . . 3 . AOE 498 | . 23 22 50 . 23 . . . 64 . . . . 26 . . . . . . . . . . . . . . 278 . . . . . 12 . Actions | -11 -10 -10 -9 -9 -9 -8 -8 -8 -7 -7 -7 -7 -6 -6 -6 -6 -6 -6 -5 -5 -5 -5 -5 -4 -4 -4 -4 -4 -4 -3 -3 -2 -2 -2 -1 -1 --------- Run | Scr Mat Min Mat Min Exi Min Mat Sto Fac Low Low Dat Pro Fac Low Low Zio Dee Pro Fac Upp Upp Zhi Pro Fac Ext Cet Arc Hub Res Qua Res Tes Sec Acc Com Total 36169 | 44 1107 395 1790 671 1363 589 1324 1007 2442 703 417 102 757 962 405 507 784 4512 400 1374 360 268 347 425 927 1052 706 183 528 824 2082 1690 1563 1949 818 792 Wait 3593 | . 56 8 221 56 54 21 175 86 232 30 45 14 69 51 65 52 38 649 18 228 2 20 19 35 101 242 190 22 26 78 101 144 150 159 118 18 Move 28158 | 39 910 348 1298 586 1227 501 1045 829 2057 646 341 88 518 844 324 414 746 3040 315 1017 347 232 300 295 684 556 462 145 436 650 1740 1399 1140 1429 651 559 Hop 140 | . . . . . . 3 7 5 17 1 . . 5 3 . . . 5 . 21 1 1 . . 5 8 . . 1 9 5 23 7 10 1 2 Pick Up 97 | 2 6 2 6 . 10 2 5 1 3 . . . 2 4 1 . . 16 . 2 . . 2 . 5 . 1 . 1 5 13 . 3 5 . . Fast Attach 134 | 3 11 3 13 1 5 . 1 4 1 . . . . . . . . 23 . 3 . . 5 . . 2 5 . 2 4 8 2 16 16 3 3 Attach 30 | . 1 . 1 . 2 1 1 1 1 . . . . 2 . . . 2 . 1 . . . 1 . . 1 . 1 . 6 1 2 5 . . Detach 5 | . . . . . . . . . . . . . . . . . . 1 . . . . . . . . . . . . 1 . 1 2 . . Swap 81 | . 6 5 8 1 2 1 4 1 6 . . . 1 . . 4 . 9 . 2 . . . . . 2 . . 3 3 4 2 5 8 . 4 Drop 207 | . 19 3 11 . 23 1 6 4 3 . . . 3 2 1 1 . 46 . 3 . . 6 . 3 2 6 . 2 9 18 2 18 11 3 1 Fire 2536 | . 71 10 158 12 40 28 54 59 98 7 16 . 41 43 14 28 . 615 36 74 8 9 15 64 103 61 35 14 45 53 120 79 123 237 22 144 Melee 7 | . . . . . . . . . . . . . . . . . . 2 . . . . . . . . . . . . . . . 5 . . Ram . | . . . . . . . . . . . . . . . . . . . . . . . . . . . . . . . . . . . . . Kick . | . . . . . . . . . . . . . . . . . . . . . . . . . . . . . . . . . . . . . Crush . | . . . . . . . . . . . . . . . . . . . . . . . . . . . . . . . . . . . . . Escape Stasis 224 | . . 1 . . . . . . . . . . . . . . . . . . . . . . . 130 . . . . 19 . 56 . . 18 Rewire 192 | . . . . . . . . . 1 12 . . 97 1 . . . . 22 . . . . 12 8 33 . . . . . . 6 . . . Trap . | . . . . . . . . . . . . . . . . . . . . . . . . . . . . . . . . . . . . . Miscellaneous 765 | . 27 15 74 15 . 31 26 17 23 7 15 . 21 12 . 8 . 104 9 23 2 6 . 18 18 16 6 2 11 13 47 38 36 62 20 43 Route ------- -11/Scrapyard -10/Materials (discovered 4 exits: *Mat x3 / [*Min]) -10/Mines (discovered 2 exits: *Mat x2) -9/Materials (discovered 4 exits: *Mat x2 / *Min x2) -9/Mines (discovered 3 exits: *Mat x2 / *Exi) -9/Exiles (discovered 2 exits: [*Min x2]) -8/Mines (discovered 2 exits: *Mat x2) -8/Materials (discovered 3 exits: *Fac x2 / *Sto) -8/Storage (discovered 2 exits: *Fac / Rec) -7/Factory (discovered 3 exits: *Fac x2 / *Low) -7/Lower Caves -7/Lower Caves -7/Data Miner -6/Proximity Caves -6/Factory (discovered 2 exits: *Low x2) -6/Lower Caves -6/Lower Caves -6/Zion (discovered 2 exits: *Dee / *Pro) -6/Deep Caves -5/Proximity Caves -5/Factory (discovered 2 exits: *Upp x2) -5/Upper Caves -5/Upper Caves -5/Zhirov -4/Proximity Caves -4/Factory (discovered 3 exits: Res / [*Upp] / *Ext) -4/Extension (discovered 3 exits: *Res x2 / *Cet) -4/Cetus (discovered 2 exits: *Res / *Arc) -4/Archives (discovered 3 exits: *Res / *Hub x2) -4/Hub_04(d) (discovered 2 exits: *Res x2) -3/Research (discovered 5 exits: *Res x3 / *Qua x2) -3/Quarantine -2/Research (discovered 2 exits: *Tes x2) -2/Testing (discovered 2 exits: Acc / *Sec) -2/Section 7 -1/Access -1/Command History --------- Turn | Location | Event 6 | -11/Scrapyard | Upgraded with Propulsion slot (x1) 6 | -11/Scrapyard | Upgraded with Utility slot (x1) 6 | -11/Scrapyard | Upgraded with Weapon slot (x1) 13 | -11/Scrapyard | Discovered new exit (range 16) 27 | -11/Scrapyard | Entered Materials 99 | -10/Materials | Discovered new exit (range 12) 185 | -10/Materials | Discovered new exit (range 18) 336 | -10/Materials | Build established: Mutant 388 | -10/Materials | Discovered new exit (range 13) 463 | -10/Materials | Discovered new exit (range 8) 515 | -10/Materials | Reached level 2 518 | -10/Materials | Upgraded with Weapon slot (x1) 635 | -10/Materials | Central database locked down 856 | -10/Materials | Entered Mines 863 | -10/Mines | Reached level 3 872 | -10/Mines | Upgraded with Utility slot (x2) 914 | -10/Mines | Learned location of Storage (-8) 920 | -10/Mines | Discovered new exit (range 10) 943 | -10/Mines | Joined a pair of Derelicts in attacking an 0b10 outpost 1027 | -10/Mines | Met a Derelict testing a Signal Generator 1030 | -10/Mines | Found Signal Generator 1055 | -10/Mines | Assembled infested the area 1056 | -10/Mines | Discovered new exit (range 7) 1058 | -10/Mines | Assisted by bots powering up and referring to "LRC-V3" 1060 | -10/Mines | Assisted by a Guerilla fighting off Assembled 1063 | -10/Mines | Crushed by falling debris 1064 | -10/Mines | Core integrity fell below 50% 1095 | -10/Mines | Destroyed 8 combat bots 1114 | -10/Mines | Entered Materials 1115 | -9/Materials | Core integrity fell below 50% 1116 | -9/Materials | Reached level 4 1116 | -9/Materials | Upgraded with Propulsion slot (x1) 1136 | -9/Materials | Identified exit to Mines 1177 | -9/Materials | Core integrity fell below 20% 1522 | -9/Materials | Reached level 5 1574 | -9/Materials | Central database locked down 1646 | -9/Materials | Reached level 6 1690 | -9/Materials | Destroyed 10 combat bots 1784 | -9/Materials | Build established: Gunner 1895 | -9/Materials | Discovered new exit (range 4) 1912 | -9/Materials | Reached level 7 1935 | -9/Materials | Upgraded with Propulsion slot (x1) 1935 | -9/Materials | Upgraded with Utility slot (x1) 1935 | -9/Materials | Upgraded with Weapon slot (x1) 2140 | -9/Materials | Reached level 8 2147 | -9/Materials | Upgraded with Power slot (x1) 2233 | -9/Materials | Build established: Scavenger-Tank 2314 | -9/Materials | First assault squad dispatched 2315 | -9/Materials | Discovered new exit (range 4) 2550 | -9/Materials | Repaired Shield Generator 2583 | -9/Materials | Repaired Imp. Hover Unit 2631 | -9/Materials | Repaired Lgt. Armor Plating 2776 | -9/Materials | Reached level 9 2840 | -9/Materials | Destroyed 10 combat bots 3007 | -9/Materials | Entered Mines 3018 | -9/Mines | Learned Materials stockpile data 3048 | -9/Mines | Discovered new exit (range 5) 3057 | -9/Mines | Met a Derelict bent on vengeance 3222 | -9/Mines | Discovered new exit (range 10) 3312 | -9/Mines | Deemed a non-threat by the Exiles lab entrance 3312 | -9/Mines | Discovered new exit (range 5) 3403 | -9/Mines | Entered Exiles 3410 | -9/Exiles | Discovered new exit (range 16) 3430 | -9/Exiles | Met 8R-AWN 3438 | -9/Exiles | Met EX-HEX 3451 | -9/Exiles | Met EX-BIN 3457 | -9/Exiles | Aligned with FarCom system 3457 | -9/Exiles | Given EX-Vault access code 3469 | -9/Exiles | Opened EX-Vault 3481 | -9/Exiles | Warned to stay clear of 0b10 Research branches 3533 | -9/Exiles | Found XL Autogun Array 3558 | -9/Exiles | Met EX-DEC 3587 | -9/Exiles | Visited The Gauntlet 3690 | -9/Exiles | Attacked by the Exiles 3707 | -9/Exiles | Destroyed 8R-AWN 3746 | -9/Exiles | Destroyed EX-HEX 3751 | -9/Exiles | Destroyed EX-DEC 3756 | -9/Exiles | Destroyed EX-BIN 3769 | -9/Exiles | Found Prototype Device 3769 | -9/Exiles | Identified System Purifier 3818 | -9/Exiles | Learned location of Zion (-6) 3858 | -9/Exiles | Found Flying Fortress v7 3913 | -9/Exiles | Found Prototype Protection 3913 | -9/Exiles | Identified 8R-AWN's Armor/EX 3966 | -9/Exiles | Found Deploy-a-Sentry 3976 | -9/Exiles | DAS Turret deployed 4128 | -9/Exiles | Discovered new exit (range 10) 4132 | -9/Exiles | Stole two prototypes: Flying Fortress v7, XL Autogun Array 4132 | -9/Exiles | Entered Mines 4134 | -8/Mines | Reached level 10 4157 | -8/Mines | Discovered new exit (range 10) 4186 | -8/Mines | Destroyed 7 combat bots 4205 | -8/Mines | Build established: Tank 4240 | -8/Mines | Reached level 11 4257 | -8/Mines | Upgraded with Utility slot (x1) 4377 | -8/Mines | Discovered new exit (range 10) 4471 | -8/Mines | Entered Materials 4473 | -8/Materials | Reached level 12 4814 | -8/Materials | Discovered new exit (range 15) 4917 | -8/Materials | Reached level 13 5000 | -8/Materials | Discovered new exit (range 3) 5025 | -8/Materials | Garrison activated, responded to threat 5066 | -8/Materials | Identified exit to Storage 5271 | -8/Materials | First assault squad dispatched 5271 | -8/Materials | Entered Storage 5271 | -8/Storage | Accompanied by 5 allies 5284 | -8/Storage | Identified exit to Recycling 5310 | -8/Storage | Reached level 14 5333 | -8/Storage | Destroyed 7 combat bots 5340 | -8/Storage | Garrison activated, responded to threat 5353 | -8/Storage | Central database locked down 5391 | -8/Storage | Identified exit to Factory 5500 | -8/Storage | Destroyed 10 combat bots 5513 | -8/Storage | Upgraded with Utility slot (x1) 5655 | -8/Storage | Garrison activated, responded to threat 5705 | -8/Storage | Build established: Gunner 5736 | -8/Storage | Assisted by bots powering up and referring to "LRC-V3" 5866 | -8/Storage | Entered Factory 5866 | -7/Factory | Accompanied by 10 allies 5868 | -7/Factory | Reached level 15 6022 | -7/Factory | Build established: Commander-Gunner 6057 | -7/Factory | Fabricated Imp. Salvage Targeting Computer (x2) 6100 | -7/Factory | Reached level 16 6104 | -7/Factory | Upgraded with Utility slot (x1) 6232 | -7/Factory | Fabricated Adv. Shield Generator (x2) 6266 | -7/Factory | First assault squad dispatched 6293 | -7/Factory | Fabricated O-24 Administrator (x1) 6375 | -7/Factory | Local fabrication network quarantined 6383 | -7/Factory | Destroyed 13 combat bots 6668 | -7/Factory | Discovered new exit (range 9) 6689 | -7/Factory | Reached level 17 6699 | -7/Factory | Upgraded with Utility slot (x1) 6710 | -7/Factory | Repaired Imp. Weapon Shielding 6749 | -7/Factory | Identified exit to Factory 6980 | -7/Factory | Discovered exit to Factory (range 4) 7010 | -7/Factory | High security lockdown imminent 7090 | -7/Factory | High security lockdown engaged 7226 | -7/Factory | Build established: Scavenger-Gunner 7271 | -7/Factory | Discovered new exit (range 7) 7277 | -7/Factory | Identified exit to Lower Caves 7277 | -7/Factory | Entered Lower Caves 7284 | -7/Lower Caves | Destroyed 11 combat bots 7389 | -7/Lower Caves | Encountered a Warlord checkpoint 7502 | -7/Lower Caves | Discovered new exit (range 15) 7508 | -7/Lower Caves | Identified exit to Lower Caves 7522 | -7/Lower Caves | Attacked by a delusional Derelict stockpiling Unaware 7572 | -7/Lower Caves | Attracted the attention of an 0b10 checkpoint 7575 | -7/Lower Caves | Learned location of Extension (-4) 7658 | -7/Lower Caves | Entered another Lower Caves area 7658 | -7/Lower Caves | Accompanied by 4 allies 7809 | -7/Lower Caves | Discovered new exit (range 9) 7812 | -7/Lower Caves | Identified exit to Data Miner 7834 | -7/Lower Caves | Build established: Commander-Gunner 7854 | -7/Lower Caves | Learned Factory terminal intel 7865 | -7/Lower Caves | Spotted 4D-YAG(f) 7866 | -7/Lower Caves | Encountered a Master Thief 7868 | -7/Lower Caves | Destroyed 4D-YAG(f) 7903 | -7/Lower Caves | Entered Data Miner 7903 | -7/Data Miner | Accompanied by 4 allies 7903 | -7/Data Miner | Discovered new exit (range 6) 7906 | -7/Data Miner | Identified exit to Proximity Caves 7913 | -7/Data Miner | Met Data Miner 7925 | -7/Data Miner | Learned location of Section 7 (-2) 7925 | -7/Data Miner | Acquired the access code to Warlord's prototype stash 7933 | -7/Data Miner | Received God Mode back door access code from Data Miner 7962 | -7/Data Miner | Entered Proximity Caves 7962 | -6/Proximity Caves | Accompanied by 4 allies 7964 | -6/Proximity Caves | Reached level 18 8071 | -6/Proximity Caves | Spotted B-75 Beast 8072 | -6/Proximity Caves | Entered a huge 0b10 base via the front door 8073 | -6/Proximity Caves | Escorted by Enhanced Grunt 8080 | -6/Proximity Caves | Allies destroyed B-75 Beast 8253 | -6/Proximity Caves | Reached level 19 8478 | -6/Proximity Caves | Entered Factory 8478 | -6/Factory | Accompanied by 11 allies 8479 | -6/Factory | Loaded intel: 20 terminal locations 8617 | -6/Factory | Reached level 20 8623 | -6/Factory | Upgraded with Utility slot (x1) 8624 | -6/Factory | Upgraded with Weapon slot (x1) 8737 | -6/Factory | Spotted B-75 Beast 8743 | -6/Factory | Destroyed B-75 Beast 8812 | -6/Factory | Identified exit to Lower Caves 8828 | -6/Factory | First assault squad dispatched 8916 | -6/Factory | Destroyed 7 combat bots 9009 | -6/Factory | Entered Lower Caves 9009 | -6/Lower Caves | Accompanied by 8 allies 9131 | -6/Lower Caves | Learned location of 1 exit from Proximity Caves 9132 | -6/Lower Caves | Learned Factory garrison access intel 9211 | -6/Lower Caves | Discovered new exit (range 11) 9215 | -6/Lower Caves | Identified exit to Lower Caves 9218 | -6/Lower Caves | Spotted BM-696(f) 9219 | -6/Lower Caves | Encountered a Master Thief 9222 | -6/Lower Caves | Destroyed BM-696(f) 9249 | -6/Lower Caves | Entered another Lower Caves area 9249 | -6/Lower Caves | Accompanied by 7 allies 9390 | -6/Lower Caves | Learned Factory interactive machine intel 9392 | -6/Lower Caves | Spotted 4V-L5L(f) 9394 | -6/Lower Caves | Encountered a Master Thief 9394 | -6/Lower Caves | Destroyed 4V-L5L(f) 9395 | -6/Lower Caves | Spotted X3-6DJ(f) 9396 | -6/Lower Caves | Encountered a Master Thief 9397 | -6/Lower Caves | Destroyed X3-6DJ(f) 9482 | -6/Lower Caves | Discovered new exit (range 10) 9487 | -6/Lower Caves | Identified exit to Zion 9545 | -6/Lower Caves | Entered Zion 9545 | -6/Zion | Accompanied by 3 allies 9547 | -6/Zion | Reached level 21 9579 | -6/Zion | Discovered new exit (range 13) 9588 | -6/Zion | Identified exit to Proximity Caves 9609 | -6/Zion | Build established: Gunner 9694 | -6/Zion | Learned Factory machine intel 9743 | -6/Zion | Learned Factory repair station intel 9850 | -6/Zion | Acquired unknown access codes intercepted by a Zionite 9932 | -6/Zion | Opened final containment barrier to the Deep Caves 9940 | -6/Zion | Discovered new exit (range 3) 9940 | -6/Zion | Saw the warning signs outside the Deep Caves entrance 9941 | -6/Zion | Identified exit to Deep Caves 9957 | -6/Zion | Entered Deep Caves 9957 | -6/Deep Caves | Accompanied by 3 allies 9958 | -6/Deep Caves | Met 5H-AD0 9974 | -6/Deep Caves | Found Surveybot 24 Chip 10048 | -6/Deep Caves | Z-Facility disabled 10058 | -6/Deep Caves | Attacked by Z-Imprinter 10060 | -6/Deep Caves | Allies destroyed Z-Imprinter 10163 | -6/Deep Caves | Found Prototype Protection 10164 | -6/Deep Caves | Identified Zio. Weapon Casing 10174 | -6/Deep Caves | Found Prototype Device 10175 | -6/Deep Caves | Identified Zio. Metafield Generator 10436 | -6/Deep Caves | Build established: Scavenger-Gunner 10589 | -6/Deep Caves | Discovered new exit (range 12) 10594 | -6/Deep Caves | Identified exit to Proximity Caves 10728 | -6/Deep Caves | Spotted as-65343 10747 | -6/Deep Caves | Destroyed as-65343 10760 | -6/Deep Caves | Found GOLEM Unit 10761 | -6/Deep Caves | Triggered Deep Caves wall 10765 | -6/Deep Caves | Exposed GOLEM chamber 10782 | -6/Deep Caves | Spotted AS-53767 10786 | -6/Deep Caves | Destroyed AS-53767 10822 | -6/Deep Caves | Triggered Deep Caves wall 10834 | -6/Deep Caves | Destroyed 28 combat bots 10858 | -6/Deep Caves | Found Prototype Device 10858 | -6/Deep Caves | Identified Exp. Thermal Shield 10895 | -6/Deep Caves | Spotted as-28416 10934 | -6/Deep Caves | Destroyed as-28416 11234 | -6/Deep Caves | Build established: Scavenger-Mutant 11319 | -6/Deep Caves | Spotted as-75730 11332 | -6/Deep Caves | Destroyed as-75730 11335 | -6/Deep Caves | Spotted as-96852 11349 | -6/Deep Caves | Destroyed as-96852 11412 | -6/Deep Caves | Spotted as-09966 11422 | -6/Deep Caves | Destroyed 7 combat bots 11594 | -6/Deep Caves | Spotted as-20145 11598 | -6/Deep Caves | Destroyed as-20145 11623 | -6/Deep Caves | Spotted as-29735 11628 | -6/Deep Caves | Build established: Scavenger-Gunner 11637 | -6/Deep Caves | Destroyed as-29735 12123 | -6/Deep Caves | Build established: Scavenger-Mutant 12421 | -6/Deep Caves | Found GOLEM Unit 12555 | -6/Deep Caves | Reached level 22 12935 | -6/Deep Caves | Found Surveybot 24 Scanner 13194 | -6/Deep Caves | Entered Proximity Caves 13195 | -5/Proximity Caves | Identified exit to Factory 13217 | -5/Proximity Caves | Attracted the attention of an 0b10 outpost 13221 | -5/Proximity Caves | Build established: Scavenger-Scout 13236 | -5/Proximity Caves | Learned Factory emergency access door positions 13285 | -5/Proximity Caves | Destroyed 15 combat bots 13425 | -5/Proximity Caves | Spotted PP-ZUH(f) 13432 | -5/Proximity Caves | Encountered a Master Thief 13432 | -5/Proximity Caves | Spotted XR-0JC(f) 13432 | -5/Proximity Caves | Entered Factory 13434 | -5/Factory | Loaded intel: 282 machine locations 13434 | -5/Factory | Reached level 23 13435 | -5/Factory | Loaded intel: 45 interactive machine locations 13436 | -5/Factory | Loaded intel: 6 repair station locations 13437 | -5/Factory | Loaded intel: 4 garrison access locations 13772 | -5/Factory | Discovered new exit (range 23) 14020 | -5/Factory | Repaired Broken Adv. Reaction Control System 14125 | -5/Factory | Incoming investigation squad redirected 14170 | -5/Factory | Spotted B-75 Beast 14175 | -5/Factory | Destroyed B-75 Beast 14189 | -5/Factory | Incoming investigation squad redirected 14192 | -5/Factory | Identified exit to Upper Caves 14256 | -5/Factory | Entered Upper Caves 14288 | -5/Upper Caves | Spotted B9-GWU(f) 14289 | -5/Upper Caves | Encountered a Master Thief 14289 | -5/Upper Caves | Spotted AR-7SZ(f) 14290 | -5/Upper Caves | Encountered a Master Thief 14351 | -5/Upper Caves | Discovered new exit (range 10) 14354 | -5/Upper Caves | Entered another Upper Caves area 14409 | -5/Upper Caves | Attracted the attention of an 0b10 checkpoint 14445 | -5/Upper Caves | Discovered new exit (range 5) 14446 | -5/Upper Caves | Entered Zhirov 14446 | -5/Zhirov | Discovered new exit (range 3) 14456 | -5/Zhirov | Learned location of Quarantine (-3) 14456 | -5/Zhirov | Learned location of Testing (-2) 14456 | -5/Zhirov | Learned location of Command (-1) 14483 | -5/Zhirov | Found Alien Artifact 14483 | -5/Zhirov | Identified Integrated Dissipator 14483 | -5/Zhirov | Installed Integrated Dissipator, increased core heat dissipation (+2%) 14508 | -5/Zhirov | Build established: Scavenger-Sprinter 14543 | -5/Zhirov | Found Alien Artifact 14577 | -5/Zhirov | Entered Proximity Caves 14578 | -4/Proximity Caves | Learned Research terminal intel 14579 | -4/Proximity Caves | Reached level 24 14588 | -4/Proximity Caves | Attracted the attention of an 0b10 checkpoint 14604 | -4/Proximity Caves | Attracted the attention of an 0b10 outpost 14638 | -4/Proximity Caves | Destroyed 8 combat bots 14685 | -4/Proximity Caves | Learned Research stockpile data 14692 | -4/Proximity Caves | Learned location of 1 exit from Research 14697 | -4/Proximity Caves | Reached level 25 14697 | -4/Proximity Caves | Upgraded with Utility slot (x1) 14741 | -4/Proximity Caves | Discovered new exit (range 6) 14758 | -4/Proximity Caves | Spotted B-86 Titan 14767 | -4/Proximity Caves | Destroyed 18 combat bots 14773 | -4/Proximity Caves | Entered Factory 14773 | -4/Factory | Accompanied by 2 allies 14774 | -4/Factory | Identified exit to Extension 14909 | -4/Factory | Incoming investigation squad redirected 14919 | -4/Factory | Fabricated O-24 Administrator? 14968 | -4/Factory | Reached level 26 14997 | -4/Factory | Found Prototype Hackware 15013 | -4/Factory | Identified Exp. System Shield 15023 | -4/Factory | First assault squad dispatched 15043 | -4/Factory | Incoming assault squad redirected 15045 | -4/Factory | Incoming assault squad redirected 15092 | -4/Factory | Discovered new exit (range 15) 15192 | -4/Factory | Discovered new exit (range 5) 15193 | -4/Factory | Garrison activated, responded to threat 15201 | -4/Factory | Entered Extension 15407 | -4/Extension | Rescued a captive Derelict 15418 | -4/Extension | Rescued a captive Derelict 15419 | -4/Extension | Rescued a captive Derelict 15421 | -4/Extension | Rescued a captive Derelict 15426 | -4/Extension | Incoming investigation squad redirected 15451 | -4/Extension | First assault squad dispatched 15555 | -4/Extension | Reached level 27 15573 | -4/Extension | Spotted B-86 Titan 15575 | -4/Extension | Spotted B-86 Titan 15579 | -4/Extension | Destroyed B-86 Titan 15583 | -4/Extension | Destroyed B-86 Titan 15598 | -4/Extension | Discovered new exit (range 3) 15643 | -4/Extension | Rescued a captive Derelict 15651 | -4/Extension | Rescued A7 15653 | -4/Extension | Central database locked down 15668 | -4/Extension | Rescued a captive Derelict 15680 | -4/Extension | Discovered new exit (range 10) 15680 | -4/Extension | Discovered new exit (range 6) 15831 | -4/Extension | Entered Cetus 15831 | -4/Cetus | Accompanied by 5 allies 15836 | -4/Cetus | Acquired a Cetus Manufacturing Module code from A7 15843 | -4/Cetus | Spotted Cetus Guard 15843 | -4/Cetus | Spotted Cetus Guard 15846 | -4/Cetus | Destroyed Cetus Guard 15847 | -4/Cetus | Spotted Cetus Guard 15849 | -4/Cetus | Destroyed Cetus Guard 15851 | -4/Cetus | Destroyed Cetus Guard 15852 | -4/Cetus | Spotted Cetus Guard 15855 | -4/Cetus | Destroyed Cetus Guard 15885 | -4/Cetus | Started Cetus Manufacturing Module 15893 | -4/Cetus | Escorted A7 to Cetus Mainframe 15910 | -4/Cetus | Manufactured an Enhanced Grunt 15935 | -4/Cetus | Manufactured an Enhanced Grunt 15960 | -4/Cetus | Manufactured an Enhanced Grunt 15985 | -4/Cetus | Manufactured an Enhanced Grunt 16010 | -4/Cetus | Manufactured an Enhanced Grunt 16027 | -4/Cetus | Found a strange terminal 16076 | -4/Cetus | Discovered new exit (range 17) 16118 | -4/Cetus | Spotted Cetus Guard 16118 | -4/Cetus | Spotted Cetus Guard 16120 | -4/Cetus | Destroyed Cetus Guard 16121 | -4/Cetus | Spotted Cetus Guard 16122 | -4/Cetus | Spotted Cetus Guard 16124 | -4/Cetus | Destroyed Cetus Guard 16125 | -4/Cetus | Allies destroyed Cetus Guard 16128 | -4/Cetus | Destroyed Cetus Guard 16130 | -4/Cetus | Discovered new exit (range 17) 16132 | -4/Cetus | Met Revision 17 16188 | -4/Cetus | Entered Archives 16188 | -4/Archives | Accompanied by 9 allies 16193 | -4/Archives | Received a hacking code to weaken MAIN.C 16200 | -4/Archives | Met Zhirov 16202 | -4/Archives | Unable to access archive contents 16204 | -4/Archives | Discovered new exit (range 18) 16204 | -4/Archives | Unable to access archive contents 16206 | -4/Archives | Reinforcements dispatched to Archives 16207 | -4/Archives | Read partially decrypted archive contents 16208 | -4/Archives | Discovered new exit (range 18) 16216 | -4/Archives | Unable to access archive contents 16226 | -4/Archives | Unable to access archive contents 16229 | -4/Archives | Unable to access archive contents 16233 | -4/Archives | Discovered new exit (range 18) 16244 | -4/Archives | Destroyed 8 combat bots 16251 | -4/Archives | Reinforcements dispatched to Archives 16253 | -4/Archives | Zhirov warped through subspace 16261 | -4/Archives | Entered Hub_04(d) 16263 | -4/Hub_04(d) | Reached level 28 16263 | -4/Hub_04(d) | Upgraded with Utility slot (x1) 16334 | -4/Hub_04(d) | Discovered new exit (range 7) 16367 | -4/Hub_04(d) | Discovered new exit (range 8) 16381 | -4/Hub_04(d) | Found Exp. Signal Interpreter 16383 | -4/Hub_04(d) | Network Hub disabled 16383 | -4/Hub_04(d) | Network Hub disabled 16442 | -4/Hub_04(d) | Spotted Lightning 16449 | -4/Hub_04(d) | Spotted Lightning 16455 | -4/Hub_04(d) | Destroyed 9 combat bots 16458 | -4/Hub_04(d) | Spotted Lightning 16459 | -4/Hub_04(d) | Entered Research 16460 | -3/Research | Identified exit to Research 16462 | -3/Research | Loaded intel: 18 terminal locations 16464 | -3/Research | Identified Transdimensional Reconstructor 16474 | -3/Research | Discovered exit to Research (range 17) 16534 | -3/Research | Found Prototype Processor 16536 | -3/Research | Identified Spectral Analyzer 16601 | -3/Research | Reached level 29 16655 | -3/Research | Fabricated System Purifier (x1) 16659 | -3/Research | Revision forces began assault on 0b10 16662 | -3/Research | Spotted B-86 Titan 16668 | -3/Research | Destroyed B-86 Titan 16685 | -3/Research | Identified exit to Quarantine 16765 | -3/Research | Local fabrication network quarantined 16767 | -3/Research | Build established: Scavenger-Scout 16772 | -3/Research | Spotted B-90 Cyclops 16782 | -3/Research | Destroyed B-90 Cyclops 16785 | -3/Research | Central database locked down 16788 | -3/Research | Entered Quarantine 16814 | -3/Quarantine | Found Alien Artifact 16820 | -3/Quarantine | Identified Core Reset Matrix 16875 | -3/Quarantine | Found Alien Artifact 16892 | -3/Quarantine | Cryocooling Duct disabled 16907 | -3/Quarantine | Ambient heat levels rising (+20) 16907 | -3/Quarantine | Non-combat units ordered to evacuate 17047 | -3/Quarantine | Cryocooling Duct disabled 17062 | -3/Quarantine | Ambient heat levels rising (+20) 17062 | -3/Quarantine | Combat units ordered to evacuate 17080 | -3/Quarantine | Identified Stasis Generator 17095 | -3/Quarantine | Discovered exit to Research (range 16) 17141 | -3/Quarantine | Found Alien Artifact 17162 | -3/Quarantine | Quarantine Guard activated 17167 | -3/Quarantine | Spotted Quarantine Guard 17171 | -3/Quarantine | Destroyed Quarantine Guard 17176 | -3/Quarantine | Spotted Quarantine Guard 17178 | -3/Quarantine | Spotted Quarantine Guard 17180 | -3/Quarantine | Destroyed Quarantine Guard 17185 | -3/Quarantine | Reached level 30 17185 | -3/Quarantine | Destroyed Quarantine Guard 17186 | -3/Quarantine | Spotted Quarantine Guard 17187 | -3/Quarantine | Spotted Quarantine Guard 17193 | -3/Quarantine | Destroyed Quarantine Guard 17195 | -3/Quarantine | Destroyed Quarantine Guard 17265 | -3/Quarantine | Spotted Quarantine Guard 17269 | -3/Quarantine | Destroyed Quarantine Guard 17272 | -3/Quarantine | Spotted Quarantine Guard 17275 | -3/Quarantine | Destroyed Quarantine Guard 17306 | -3/Quarantine | Identified Subatomic Replicator 17321 | -3/Quarantine | Found Alien Artifact 17322 | -3/Quarantine | Identified Hpw. Transdimensional Reconstructor 17322 | -3/Quarantine | Warped through subspace 17326 | -3/Quarantine | Incoming investigation squad redirected 17339 | -3/Quarantine | Found Alien Artifact 17349 | -3/Quarantine | Identified Terrabomb 17349 | -3/Quarantine | Used Terrabomb 17357 | -3/Quarantine | Crushed by falling debris 17369 | -3/Quarantine | Spotted Quarantine Guard 17372 | -3/Quarantine | Destroyed Quarantine Guard 17375 | -3/Quarantine | Spotted Quarantine Guard 17380 | -3/Quarantine | Destroyed Quarantine Guard 17406 | -3/Quarantine | Found Alien Artifact 17408 | -3/Quarantine | Identified Dimensional Node Initializer 17408 | -3/Quarantine | Initialized slip node 17462 | -3/Quarantine | Spotted Quarantine Guard 17471 | -3/Quarantine | Destroyed Quarantine Guard 17482 | -3/Quarantine | Spotted Quarantine Guard 17484 | -3/Quarantine | Destroyed Quarantine Guard 17499 | -3/Quarantine | Met incapacitated Sigix Warrior 17499 | -3/Quarantine | Lockdown squad dispatched 17500 | -3/Quarantine | Acquired the access code to the Sigix quarantine chamber 17501 | -3/Quarantine | Unlocked Sigix quarantine chamber 17503 | -3/Quarantine | Used Subatomic Replicator to replicate Sigix Containment Pod 17527 | -3/Quarantine | Spotted Lightning 17550 | -3/Quarantine | Spotted Quarantine Guard 17551 | -3/Quarantine | Entered Research 17553 | -2/Research | Reached level 31 17553 | -2/Research | Upgraded with Utility slot (x1) 17746 | -2/Research | Found Prototype Device 17746 | -2/Research | Identified Exp. Actuator Array 17786 | -2/Research | Identified exit to Testing 17801 | -2/Research | First assault squad dispatched 18004 | -2/Research | Spotted B-90 Cyclops 18008 | -2/Research | Destroyed 7 combat bots 18053 | -2/Research | Reached level 32 18074 | -2/Research | Destroyed 8 combat bots 18172 | -2/Research | Entered Testing 18196 | -2/Testing | Identified exit to Access 18264 | -2/Testing | Spotted Striker 18294 | -2/Testing | Fabricated C-65 Expert? 18324 | -2/Testing | Spotted PG-F3NB2BT5KY 18331 | -2/Testing | Scanned by Researcher 18347 | -2/Testing | Incoming investigation squad redirected 18396 | -2/Testing | Rewired PG-F3NB2BT5KY 18539 | -2/Testing | Found Portable AFG 18568 | -2/Testing | Garrison activated, responded to threat 18573 | -2/Testing | Reached level 33 18596 | -2/Testing | Found Prototype Processor 18596 | -2/Testing | Identified Exp. Core Analyzer 18672 | -2/Testing | First assault squad dispatched 18694 | -2/Testing | High security lockdown imminent 18706 | -2/Testing | Found Prototype Device 18706 | -2/Testing | Identified Exp. Weapon Cycler 18716 | -2/Testing | Destroyed 8 combat bots 18729 | -2/Testing | Fabricated P-70 Sage? 18738 | -2/Testing | Spotted Striker 18742 | -2/Testing | Spotted Alpha 7 18742 | -2/Testing | Destroyed Striker 18745 | -2/Testing | Destroyed Striker 18754 | -2/Testing | Destroyed Alpha 7 18764 | -2/Testing | Found Prototype Processor 18764 | -2/Testing | Identified Exp. Target Analyzer 18768 | -2/Testing | Local fabrication network quarantined 18772 | -2/Testing | Stole the SGEMP Prototype 18774 | -2/Testing | High security lockdown engaged 18832 | -2/Testing | Spotted Fortress 18861 | -2/Testing | Discovered new exit (range 6) 18863 | -2/Testing | Identified exit to Section 7 18866 | -2/Testing | Entered Section 7 18894 | -2/Section 7 | Found Alien Artifact 18907 | -2/Section 7 | Identified Integrated Reactor 18907 | -2/Section 7 | Installed Integrated Reactor, increased core energy generation (+2%) 19027 | -2/Section 7 | Garrison activated, responded to threat 19057 | -2/Section 7 | Incoming investigation squad redirected 19062 | -2/Section 7 | Destroyed 10 combat bots 19116 | -2/Section 7 | Scanned by Researcher 19120 | -2/Section 7 | Found Integrated Reactor 19120 | -2/Section 7 | Installed Integrated Reactor, increased core energy generation (+2%) 19131 | -2/Section 7 | Intercept squad dispatched 19137 | -2/Section 7 | Spotted Tracker 19139 | -2/Section 7 | Spotted Tracker 19144 | -2/Section 7 | Reached level 34 19144 | -2/Section 7 | Destroyed Tracker 19145 | -2/Section 7 | First assault squad dispatched 19145 | -2/Section 7 | Destroyed Tracker 19160 | -2/Section 7 | Spotted Combat Programmer 19162 | -2/Section 7 | Spotted Combat Programmer 19165 | -2/Section 7 | Destroyed Combat Programmer 19167 | -2/Section 7 | Destroyed Combat Programmer 19211 | -2/Section 7 | Found Alien Artifact 19211 | -2/Section 7 | Identified Integrity Redistributor 19211 | -2/Section 7 | Used Integrity Redistributor, redistributed integrity from core (-2) 19232 | -2/Section 7 | Spotted B-90 Cyclops 19244 | -2/Section 7 | Destroyed B-90 Cyclops 19293 | -2/Section 7 | Destroyed 14 combat bots 19312 | -2/Section 7 | Incoming investigation squad redirected 19330 | -2/Section 7 | Spotted Alpha 7 19330 | -2/Section 7 | Spotted Alpha 7 19343 | -2/Section 7 | Destroyed Alpha 7 19354 | -2/Section 7 | Destroyed Alpha 7 19376 | -2/Section 7 | Spotted S7 Guard 19379 | -2/Section 7 | Found Alien Artifact 19388 | -2/Section 7 | Intercept squad dispatched 19394 | -2/Section 7 | Spotted Tracker 19394 | -2/Section 7 | Spotted Tracker 19394 | -2/Section 7 | Spotted Tracker 19399 | -2/Section 7 | Destroyed Tracker 19402 | -2/Section 7 | Spotted Combat Programmer 19403 | -2/Section 7 | Destroyed Tracker 19403 | -2/Section 7 | Spotted Combat Programmer 19407 | -2/Section 7 | Destroyed Combat Programmer 19410 | -2/Section 7 | High security lockdown imminent 19410 | -2/Section 7 | Destroyed Combat Programmer 19410 | -2/Section 7 | Destroyed Tracker 19419 | -2/Section 7 | Spotted Combat Programmer 19424 | -2/Section 7 | Destroyed Combat Programmer 19445 | -2/Section 7 | Destroyed 9 combat bots 19462 | -2/Section 7 | Spotted B-99 Colossus 19474 | -2/Section 7 | Identified Core Regenerator 19474 | -2/Section 7 | Used Core Regenerator, restored core integrity (+10) 19477 | -2/Section 7 | Found Integrated Dissipator 19490 | -2/Section 7 | High security lockdown engaged 19491 | -2/Section 7 | Installed Integrated Dissipator, increased core heat dissipation (+2%) 19493 | -2/Section 7 | Found Alien Artifact 19493 | -2/Section 7 | Identified LRC Energy Well 19493 | -2/Section 7 | Installed LRC Energy Well, increased energy storage capacity (+250) 19495 | -2/Section 7 | Found Alien Artifact 19495 | -2/Section 7 | Identified LRC Armor 19495 | -2/Section 7 | Installed LRC Armor, increased core integrity (+250) 19512 | -2/Section 7 | Found Integrated Dissipator 19512 | -2/Section 7 | Installed Integrated Dissipator, increased core heat dissipation (+2%) 19514 | -2/Section 7 | Found Integrated Dissipator 19514 | -2/Section 7 | Installed Integrated Dissipator, increased core heat dissipation (+2%) 19516 | -2/Section 7 | Found Integrated Dissipator 19516 | -2/Section 7 | Installed Integrated Dissipator, increased core heat dissipation (+2%) 19559 | -2/Section 7 | Found Prototype Processor 19559 | -2/Section 7 | Identified Exp. Melee Analysis Suite 19574 | -2/Section 7 | Found Enh. Force Lance 19597 | -2/Section 7 | Spotted Executioner 19645 | -2/Section 7 | Intercept squad dispatched 19647 | -2/Section 7 | Spotted Executioner 19647 | -2/Section 7 | Spotted Executioner 19650 | -2/Section 7 | Spotted Striker 19651 | -2/Section 7 | Spotted Striker 19654 | -2/Section 7 | Spotted Tracker 19654 | -2/Section 7 | Spotted Tracker 19654 | -2/Section 7 | Spotted Tracker 19657 | -2/Section 7 | Spotted Tracker 19659 | -2/Section 7 | Destroyed Tracker 19661 | -2/Section 7 | Destroyed Tracker 19664 | -2/Section 7 | Destroyed Tracker 19668 | -2/Section 7 | Destroyed Tracker 19684 | -2/Section 7 | Spotted Executioner 19684 | -2/Section 7 | Spotted Executioner 19687 | -2/Section 7 | Spotted Combat Programmer 19690 | -2/Section 7 | Spotted Combat Programmer 19705 | -2/Section 7 | Spotted B-90 Cyclops 19711 | -2/Section 7 | Entered Access 19713 | -1/Access | Reached level 35 19817 | -1/Access | Fabricated O-24 Administrator (x1) 19937 | -1/Access | Intercept squad dispatched 19949 | -1/Access | Spotted Tracker 19950 | -1/Access | Spotted Tracker 19950 | -1/Access | Destroyed Tracker 19956 | -1/Access | Destroyed Tracker 19961 | -1/Access | First assault squad dispatched 19969 | -1/Access | Spotted Combat Programmer 19970 | -1/Access | Spotted Combat Programmer 19972 | -1/Access | Destroyed Combat Programmer 19978 | -1/Access | Destroyed Combat Programmer 20049 | -1/Access | Discovered new exit (range 7) 20051 | -1/Access | Identified exit to Command 20052 | -1/Access | Entered Command 20089 | -1/Command | Disengaged cave seal 20089 | -1/Command | Wild derelicts emerged from the dark tunnel 20129 | -1/Command | Reached level 36 20138 | -1/Command | Upgraded with Utility slot (x1) 20152 | -1/Command | Destroyed 11 combat bots 20172 | -1/Command | Disengaged cave seal 20201 | -1/Command | Spotted M Guard 20201 | -1/Command | Spotted M Guard 20201 | -1/Command | Spotted Combat Programmer 20201 | -1/Command | Spotted Combat Programmer 20224 | -1/Command | Destroyed M Guard 20243 | -1/Command | System corruption reached 10% 20248 | -1/Command | Destroyed M Guard 20251 | -1/Command | Core integrity fell below 50% 20252 | -1/Command | Destroyed Combat Programmer 20266 | -1/Command | Destroyed Combat Programmer 20266 | -1/Command | Destroyed all MAIN.C guards 20281 | -1/Command | Found Prototype Protection 20281 | -1/Command | Identified Hvy. Regenerative Plating 20370 | -1/Command | 0b10 Conduit disabled 20370 | -1/Command | Met MAIN.C 20398 | -1/Command | Destroyed MAIN.C Shell 20399 | -1/Command | MAIN.C activated Command garrisons 20406 | -1/Command | Core integrity fell below 20% 20409 | -1/Command | Destroyed by H-88 Terminator with KE Penetrator Last Messages --------------- 20405_ System corrupted: Heat flow error (+114). 20405_ Penetrated by Slug. 20405_ S-43 Plague suffers critical hit. 20405_ S-43 Plague destroyed. 20406_ Slug penetrates 0b10 Conduit. 20406_ Slug penetrates H-88 Terminator. 20406_ Slug penetrates L-61 Swordsman. 20406_ Acquired 47 matter. 20406_ Slug penetrates L-61 Swordsman. 20406_ Slug penetrates S-43 Plague. 20407_ Slug penetrates H-88 Terminator. 20407_ H-88 Terminator suffers critical hit. 20407_ Penetrated by Slug. 20408_ Slug penetrates MAIN.C. 20408_ Knocked back. 20408_ Penetrated by Slug. 20408_ Slug penetrates H-88 Terminator. 20408_ System corrupted: XL Autogun Array targeting data glitched. 20409_ Critical hit. 20409_ Penetrated by Slug. Map ----- +----------------------------------------------------+ | ?????????????????????????????????????????????????? | | ?????????????????????????????????????????????????? | | ?????????????????????????????????????????????????? | | ?????????????????????????????????????????????????? | | ?????????????????????????????????????????????????? | | ??????????????????????????????################???# | | ?????????????????????????????"" """" #???? | | ?????????????????????????????? "" #???? | | ????????????????????????""""" "" ##### | | ????????????????????????""""""""""" / | | ???????????????????????#" " """ / | | ???????????????????????# " """""" / | | ???????????????????????# " """""" ##### | | ???????????????????????# " """""" #???? | | ???????????????????????# " "" l #???? | | ???????????????????????# " " h "#???# | | ???????????????????????# """"" h h """""""#???# | | ???????????????????????# [ bh """""""""##??# | | ???????????????????????#*[h b=l l """""""""#???# | | ???????????????????????#h=hbh=h h " " " ##??# | | ???????????????????????#*=[hhl " " " " #???# | | ???????????????????????"=sMh h " " """" " #???# | | ???????????????????????"=l%hhh""" " """" #?#?? | | ???????????????????????"ll[ " " " " #??#? | | ???????????????????????#& = """"""""" " ? ?#??# | | ???????????????????????# @ """ " """""??????## | | ???????????????????????# """ " " "???????? | | ???????????????????????##################???????## | | ????????????????????????????????????????????????## | | ?????????????????????????????????????????????????? | | ?????????????????????????????????????????????????? | | ?????????????????????????????????????????????????? | | ?????????????????????????????????????????????????? | | ?????????????????????????????????????????????????? | | ?????????????????????????????????????????????????? | | ?????????????????????????????????????????????????? | | ?????????????????????????????????????????????????? | | ?????????????????????????????????????????????????? | | ?????????????????????????????????????????????????? | | ?????????????????????????????????????????????????? | | ?????????????????????????????????????????????????? | | ?????????????????????????????????????????????????? | | ?????????????????????????????????????????????????? | | ?????????????????????????????????????????????????? | | ?????????????????????????????????????????????????? | | ?????????????????????????????????????????????????? | | ?????????????????????????????????????????????????? | | ?????????????????????????????????????????????????? | | ?????????????????????????????????????????????????? | | ?????????????????????????????????????????????????? | +----------------------------------------------------+ Best States ------------- Heat Dissipation 191 Coolant Potential 120 Energy Generation 69 Energy Capacity 1350 Matter Stores 850 Matter Capacity 850 Sight Range 18 Robot Scan Range 20 Terrain Scan Range 24 Terrain Scan Density 2010 Power Amplification 40 Additional Mass Support 10 Armor Coverage 1400 Resistance: KI 15 Resistance: TH 15 Resistance: EX 90 Resistance: EM 15 Resistance: I 15 Resistance: S 15 Resistance: P 15 Utility Shielding 33 Weapon Shielding 100 Reclamation Efficiency 25 Weapon Cycling 30 Phase Shifting 15 Evasion (%) 87 Targeting Accuracy 10 Melee Accuracy 12 Core Analysis 15 Salvage Targeting 4 Offensive Hacking 22 Defensive Hacking 21 Item Schematics ----------------- Cld. Ion Engine | -9/Materials | Scanalyzed Adv. Signal Interpreter | -8/Materials | Scanalyzed Exp. Heat Sink | -8/Materials | Scanalyzed Enh. Autogun | -8/Materials | Scanalyzed Bore Cannon | -8/Materials | Scanalyzed Imp. Weapon Shielding | -8/Materials | Scanalyzed Hvy. Reflective Plating | -8/Storage | Hacked Xenon Bombardment Thruster | -8/Storage | Hacked Imp. Salvage Targeting Computer | -8/Storage | Hacked Force Rifle | -8/Storage | Hacked Matter Filter | -7/Factory | Hacked Adv. Drone Bay | -7/Factory | Hacked Adv. Targeting Computer | -7/Factory | Scanalyzed Great Axe | -7/Factory | Scanalyzed Combat Drone Bay | -7/Data Miner | Free Lgt. Regenerative Plating | -7/Data Miner | Free Exp. Terrain Scan Processor | -7/Data Miner | Free Exp. Targeting Computer | -7/Data Miner | Free Plasma Sword | -7/Data Miner | Free Hpw. Shock Rifle | -6/Factory | Hacked Adv. System Shield | -5/Factory | Hacked Com. Matter Pod | -5/Factory | Scanalyzed Assault Drone Bay | -5/Zhirov | Free Exp. Optical Array | -5/Zhirov | Free Imp. Arc Thrower | -5/Zhirov | Free Imp. Plasma Cutter | -4/Factory | Scanalyzed Quantum Reactor | -4/Factory | Hacked Imp. Gyrokinetic Inverter | -4/Factory | Hacked Q-thruster | -4/Hub_04(d) | Hacked Adv. Armor Integrity Analyzer | -4/Hub_04(d) | Hacked Adv. Coolant Injector | -4/Hub_04(d) | Hacked Adv. Cryofiber Web | -4/Hub_04(d) | Hacked Hardcell Cannon | -4/Hub_04(d) | Hacked System Purifier | -3/Research | Scanalyzed Adv. Force Booster | -3/Research | Hacked Biometal Leg | -3/Research | Hacked Adv. Component Analysis Suite | -3/Quarantine | Hacked Stasis Projector | -3/Quarantine | Hacked Enh. Quantum Rifle | -3/Quarantine | Hacked Biometal Heavy Treads | -3/Quarantine | Hacked Cmb. Linear Gravjet | -2/Research | Hacked Adv. Variable Charge Gun | -2/Testing | Scanalyzed Exp. Matter Compressor | -2/Testing | Scanalyzed Robot Schematics ------------------ O-24 Administrator | -8/Materials | Hacked Y-45 Defender | -7/Factory | Hacked G-47 Trooper | -7/Factory | Hacked B-36 Bruiser | -7/Factory | Hacked S-27 Virus | -7/Data Miner | Free G-50 Soldier | -7/Data Miner | Free G-67 Veteran | -7/Data Miner | Free X-72 Disruptor | -7/Data Miner | Free I-36 Angel | -7/Data Miner | Free E-15 Imp | -4/Extension | Hacked P-70 Sage | -3/Research | Hacked H-77 Assassin | -3/Quarantine | Hacked A-02 Transporter | -3/Quarantine | Hacked R-06 Scavenger | -3/Quarantine | Hacked C-65 Expert | -2/Research | Hacked Fabricated ------------ Imp. Salvage Targeting Computer | x2 | -7/Factory Adv. Shield Generator | x2 | -7/Factory | Preloaded O-24 Administrator | x1 | -7/Factory O-24 Administrator | x1 | -4/Factory System Purifier | x1 | -3/Research C-65 Expert | x1 | -2/Testing P-70 Sage | x2 | -2/Testing O-24 Administrator | x1 | -1/Access Alien Tech Used ----------------- Integrated Dissipator High-powered Transdimensional Reconstructor Terrabomb Dimensional Node Initializer Subatomic Replicator Integrated Reactor Integrity Redistributor Core Regenerator LRC Energy Well LRC Armor Achievements -------------- Corridor Of Doom Equal Opportunity Bot Great Explorer Leap Before You Look Meet Your Maker Overkill Challenges ------------ None RPGLIKE | -11 -10 -10 -9 -9 -9 -8 -8 -8 -7 -7 -7 -7 -6 -6 -6 -6 -6 -6 -5 -5 -5 -5 -5 -4 -4 -4 -4 -4 -4 -3 -3 -2 -2 -2 -1 -1 --------- Run | Scr Mat Min Mat Min Exi Min Mat Sto Fac Low Low Dat Pro Fac Low Low Zio Dee Pro Fac Upp Upp Zhi Pro Fac Ext Cet Arc Hub Res Qua Res Tes Sec Acc Com Levels Raised 35 | . 1 1 6 . . 2 2 1 3 . . . 2 1 . . 1 1 . 1 . . . 2 1 1 . . 1 1 1 2 1 1 1 1 XP Earned 56838 | 3000 2265 750 9387 676 169 2457 3123 1765 4237 156 275 152 1945 1755 405 426 141 1500 1115 1255 153 223 118 2108 1745 1049 614 463 567 1495 1594 2499 2186 1610 1121 2339 XP Spent 55440 | 3000 800 2185 8990 . . 3025 1900 2000 4900 . . . 360 4300 . . . 2960 . . . . . 3200 1750 . 300 . 3500 250 700 3800 2935 . . 4585 Upgrades 77 | 9 1 6 17 . . 8 7 1 2 . . . 2 2 . . . 3 . . . . . 1 1 . 1 . 1 1 1 1 6 . . 6 Power Slot 1 | . . . 1 . . . . . . . . . . . . . . . . . . . . . . . . . . . . . . . . . Propulsion Slot 3 | 1 . . 2 . . . . . . . . . . . . . . . . . . . . . . . . . . . . . . . . . Utility Slot 13 | 1 . 2 1 . . 1 . 1 2 . . . . 1 . . . . . . . . . 1 . . . . 1 . . 1 . . . 1 Weapon Slot 4 | 1 1 . 1 . . . . . . . . . . 1 . . . . . . . . . . . . . . . . . . . . . . Core Integrity 11 | . . 1 4 . . . 1 . . . . . . . . . . . . . . . . . . . . . . . . . 2 . . 3 Heat Dissipation 11 | 1 . 2 3 . . . . . . . . . 2 . . . . 1 . . . . . . . . . . . . . . 2 . . . Matter Storage 1 | . . . . . . . 1 . . . . . . . . . . . . . . . . . . . . . . . . . . . . . Mass Support 3 | 1 . . 2 . . . . . . . . . . . . . . . . . . . . . . . . . . . . . . . . . Inventory Capacity 8 | 2 . . 2 . . . . . . . . . . . . . . 2 . . . . . . 1 . . . . . . . 1 . . . Sight Range 2 | . . 1 . . . . . . . . . . . . . . . . . . . . . . . . 1 . . . . . . . . . Sensor Range 10 | . . . 1 . . 6 1 . . . . . . . . . . . . . . . . . . . . . . 1 . . 1 . . . Terrain Scan Density 2 | . . . . . . . . . . . . . . . . . . . . . . . . . . . . . . . . . . . . 2 Ranged Accuracy 4 | 1 . . . . . 1 1 . . . . . . . . . . . . . . . . . . . . . . . 1 . . . . . Hack Attack % 2 | . . . . . . . 2 . . . . . . . . . . . . . . . . . . . . . . . . . . . . . Hack Defense % 1 | 1 . . . . . . . . . . . . . . . . . . . . . . . . . . . . . . . . . . . . KI Damage % 1 | . . . . . . . 1 . . . . . . . . . . . . . . . . . . . . . . . . . . . . . Protomatter Created 13299 | . 216 42 823 92 . 261 480 369 954 55 115 . 361 416 7 179 . 1877 269 524 57 117 179 525 387 433 99 237 139 324 530 449 1017 1197 151 418 Integrity Restored 14522 | . 553 339 1608 283 . 624 348 117 381 160 285 . 391 195 . 92 . 2158 131 348 24 109 . 263 283 270 128 13 218 254 939 766 628 1249 453 912 Core 9048 | . 535 339 1608 92 . 219 113 50 253 116 29 . 164 103 . 16 . 994 77 167 8 58 . 151 131 144 38 10 140 117 686 331 362 679 453 865 Parts 5474 | . 18 . . 191 . 405 235 67 128 44 256 . 227 92 . 76 . 1164 54 181 16 51 . 112 152 126 90 3 78 137 253 435 266 570 . 47 Protomatter Decayed 8795 | . 30 . 198 9 . 48 277 376 674 . 17 . 306 413 . 175 . 1574 223 442 48 23 91 315 234 492 56 55 63 441 209 159 741 737 . 369 Game ------ Seed HugeNetworkPropulsion Manual? 0 Play Time 09:40:03 Cumulative 116.6 hours Start 2020.07.22 @ 14:12:55 End 2020.07.27 @ 15:19:46 Sessions 3 Manual Loads 0 Difficulty Rogue Special Mode Winter2019/RPGLIKE Game No. 48 Rogue 48 Adventurer 0 Explorer 0 Win Type - Total 1 Types 0/0/0/1/0/0/0 Lore% 71 Gallery% 60 Achievement% 59 Wizard Run 0 Options --------- ASCII 0 Keyboard 0 Movement Numpad Keybinds 0 Fullscreen 1 Font 14/SmallcapsGlow Map View 84x54 Tactical HUD 1 Map Filters NONE Filters NONE Steam 1 RUN: 5b8159e3-af14-44a6-9f43-163f69d28749